Workbook

Sheet Contratos
C1: PLANILHA DE CONTRATOS DE PRESTAÇÃO DE SERVIÇOS E AQUISIÇÕES DA FUNDAÇÃO HEMOMINAS | F1: CCD: 035.1
F2: FPOP-G.GPO.CCO-01 VERSÃO 07 SETEMBRO/2025
A5: Nº | B5: CONTRATO PORTAL | C5: NÚMERO SEI | D5: CONTRATADO | E5: OBJETO DO CONTRATO | F5: COMODATO | G5: APÓLICE/GARANTIA DA EXECUÇÃO | H5: DATA DE VIGÊNCIA INICIAL DO CONTRATO | I5: DATA FINAL DA 1ª VIGÊNCIA | J5: PRORROGÁVEL? SIM/NÃO | K5: DATA INICIAL DO ÚLTIMO TERMO ADITIVO | L5: DATA FINAL DO ÚLTIMO TERMO ADITIVO | M5: DATA FINAL/ TOTAL DA CONTRATAÇÃO | N5: MÊS DE REFERÊNCIA PARA EMISSÃO DO AVISO | O5: ANO DE REFERÊNCIA PARA EMISSÃO DE AVISO | P5: VALOR MENSAL | Q5: VALOR ANUAL | R5: VALOR TOTAL | S5: SIGLA SETOR | T5: RESPONSÁVEL TÉCNICO | U5: FISCAL | V5: FISCAL SUPLENTE | W5: GESTOR | X5: GESTOR SUPLENTE
A6: 9410.283/24 | B6: 9410283 | C6: 2320.01.0012356/2023-68 | D6: A&M Solution Agencia Digital Ltda | E6: Prestação de serviço de Manutenção e Suporte do Portal Hemominas (Site e Intranet). | F6: Não | H6: 2024-02-22 | I6: 2025-02-21 | J6: Sim | K6: 2026-02-22 | L6: 2027-02-21 | M6: 2029-02-21 | N6: 02 | O6: 2027 | P6: 23583.18 | Q6: 282998.16 | R6: 1414990.8 | S6: I.GTC.ADS / I.GTC | U6: Fabrine Juliana Fabricio Costa | V6: Mariana Cristina Santos | W6: Iara Simões Xavier | X6: Júlia Carolina Soares
A7: 9293.818/21 | B7: 9293818 | C7: 2320.01.0013616/2021-04 | D7: AACP Serviço Ambiental Eireli | E7: Prestação de Serviço de limpeza e tratamento de caixas de água e reservatórios (Lotes 02 e 04) | F7: Não | H7: 2021-10-16 | I7: 2022-10-15 | J7: Sim | K7: 2025-10-16 | L7: 2026-10-15 | M7: 2026-10-15 | N7: 10 | O7: 2026 | P7: 472.33 | Q7: 5668 | R7: 5.668,00 | S7: JFO.A.MAT / GOV.A.MAT / I.GIF.MPR | U7: Victor Valente Campos/Deivandro Lessa | V7: André Meireles Fontes/Bruno Sousa Macedo | W7: Kathryna Fontana Rodrigues | X7: Iara Simões Xavier
A8: 9369.083/23 | B8: 9369083 | C8: 2320.01.0016834/2022-27 | D8: AACP Serviço Ambiental Eireli | E8: Prestação de serviços de análise e monitoramento da qualidade da água nas edificações utilizadas pela Fundação Hemominas (Lotes 02 a 08). | F8: Não | H8: 2023-03-01 | I8: 2024-02-29 | J8: Sim | K8: 2026-03-01 | L8: 2027-02-28 | M8: 2028-02-28 | N8: 02 | O8: 2027 | P8: =Tabela1[[#This Row],[VALOR TOTAL]]/12 -> 4043.958333 | Q8: 48527.5 | R8: 48527.5 | S8: I.GIF.AQE | U8: Maria Luíza Pinheiro Leite | V8: Jéssica Rodrigues Barbosa | W8: Kathryna Fontana Rodrigues | X8: Iara Simões Xavier
A9: 9483.096/25 | B9: 9483096 | C9: 2320.01.0004608/2025-29 | D9: AACP Serviço Ambiental Ltda | E9: Prestação de serviços de análise da qualidade da água da edificação do Hemocentro Regional de Uberaba da Fundação Hemominas. | F9: Não | H9: 2025-11-13 | I9: 2026-11-12 | J9: Sim | M9: 2035-11-12 | N9: 11 | O9: 2026 | Q9: 0 | R9: 3840 | S9: URA.GAD | U9: Maria Luíza Pinheiro | V9: Leila Pereira | W9: Júlia Carolina Soares | X9: Victor Adler Oliveira
A10: 9483.939/25 | B10: 9483939 | C10: 2320.01.0016275/2025-76 | D10: AACP Serviço Ambiental Ltda | E10: Prestação de serviços de desinsetização e desratização (Lotes 06, 07, 14 e 16). | F10: Não | H10: 2025-11-17 | I10: 2026-11-16 | J10: Sim | M10: 2035-11-16 | N10: 11 | O10: 2026 | P10: =Tabela1[[#This Row],[VALOR TOTAL]]/12 -> 680.94 | Q10: 8171.28 | R10: 8171.28 | S10: DGI.NZL | U10: Marcelo de Aguiar Gomes | V10: Márcia Regina Luis Victor Valente Campos Denise do Socorro Guimarães Marco Paulo Dias Canabrava | W10: Kathryna Fontana Rodrigues | X10: Iara Simões Xavier
A11: 9471.169/25 | B11: 9471169 | C11: 2320.01.0011848/2024-07 | D11: Abbott Laboratórios do Brasil Ltda | E11: Aquisição de sistema analítico para pesquisa de antígeno para HBsAg e anticorpos: anti-HBc, anti-HCV, anti-HTLV I/II, anti-HIV 1+2 e subtipo O, Sífilis e Chagas, com equioamento em comodato. | F11: Sim | H11: 2025-07-15 | I11: 2026-07-14 | J11: Sim | M11: 2035-07-14 | N11: 07 | O11: 2026 | P11: =Tabela1[[#This Row],[VALOR ANUAL]]/12 -> 969533.3333 | Q11: 11634400 | R11: 11634400 | S11: T.GLA.CSO | U11: Sônia Mara Nunes da Silva | V11: Leonardo Antônio Renna Batalha | W11: Júlia Carolina Soares | X11: Victor Adler Oliveira
A12: 9472.605/25 | B12: 9472605 | C12: 2320.01.0008849/2025-79 | D12: Abbott Laboratórios do Brasil Ltda | E12: Sistema Analítico para Pesquisa de ANTI-TOXOPLASMOSE IGM, ANTI-TOXOPLASMOSE IGG, ANTI-CITOMEGALOVÍRUS IGM, ANTI-CITOMEGALOVÍRUS IGG e ANTI-HBS | F12: Não | H12: 2025-07-24 | I12: 2026-01-23 | J12: Não | K12: 2026-01-24 | L12: 2026-07-23 | M12: 2026-01-23 | N12: 07 | O12: 2026 | P12: =Tabela1[[#This Row],[VALOR TOTAL]]/6 -> 3682.56 | R12: 22095.36 | S12: T.GLA.CSO | U12: Sônia Mara Nunes da Silva | V12: Leonardo Antônio Renna Batalha | W12: Kathryna Fontana Rodrigues | X12: Iara Simões Xavier
A13: 9493.150/26 | B13: 9493150 | C13: 2320.01.0010388/2025-42 | D13: ABC Empreendimentos Segurança e Incêndio ltda | E13: Prestação de serviços de manutenção e limpeza de jardins e de corte e/ou poda de árvores, contemplando o replantio com fornecimento de plantas e gramas nas áreas vegetadas do Hemonúcleo de Divinópolis | F13: Não | H13: 2026-01-23 | I13: 2027-01-22 | J13: Sim | M13: 2036-01-22 | N13: 01 | O13: 2027 | P13: 1719.44 | Q13: 20633.28 | R13: 206332.8 | S13: DIV.GAD | U13: Nilba Valéria Pinheiro de Oliveira | V13: Lidiane Barbosa Vilela | W13: Iara Simões Xavier | X13: Marcela Soares Ferreira
A14: 9494.479/26 | B14: 9494479 | C14: 2320.01.0013140/2025-40 | D14: ABHH - Associação Brasileira de Hematologia, Hemoterapia e Terapia Celular | E14: Contratação dos serviços de Auditoria e Assessoramento do Programa de Acreditação AABB/ABHH no Sistema da Qualidade para Serviços de Banco de Sangue e Serviço de Transfusão (Hemocentro de Belo Horizonte) e Serviços de Terapia Celular (Cetebio). | F14: Não | H14: 2026-02-11 | I14: 2028-08-10 | J14: Não | M14: 2028-08-10 | N14: 08 | O14: 2028 | P14: 5345.71 | Q14: 64148.47 | R14: 160371.2 | S14: PRE.AAE | U14: Diogo Wanis Lara | V14: Jussara Cristina Barbosa | W14: Victor Adler Oliveira | X14: Júlia Carolina Soares
A15: 9388.538/23 | B15: 9388538 | C15: 2320.01.0000097/2023-97 | D15: ACI Comércio Ltda - EPP | E15: Prestação de serviço de manutenção, reparo, conservação e adaptação em equipamentos e instrumentos odontológicos,. | F15: Não | H15: 2023-06-17 | I15: 2024-06-16 | J15: Sim | K15: 2025-06-17 | L15: 2026-06-16 | M15: 2028-06-16 | N15: 06 | O15: 2026 | P15: =R15/12 -> 1811.63 | Q15: 21739.56 | R15: 21739.56 | S15: GAD.JFO.A.COM | U15: Paulo Henrique Gomes Souza | V15: Vitor Valente Campos | W15: Victor Adler Oliveira | X15: Júlia Carolina Soares
A16: 9393.310/23 | B16: 9393310 | C16: 2320.01.0006171/2023-29 | D16: ACTS do Brasil Ltda | E16: Aquisição de Bolsas para congelamento de células progenitoras (lote 01). | F16: Não | H16: 2023-09-02 | I16: 2028-09-01 | J16: Sim | K16: 2025-09-02 | L16: 2026-09-01 | M16: 2028-09-01 | N16: 09 | O16: 2026 | Q16: 1424483.52 | R16: 1424483.52 | S16: CETEBIO.G. EXECUTIVA | U16: Diogo Vidal Mota | V16: Maurício Colombini Martins | W16: Kathryna Fontana Rodrigues | X16: Iara Simões Xavier
A17: 9473.087/25 | B17: 9473087 | C17: 2320.01.0017577/2024-39 | D17: ACTS do Brasil Ltda | E17: Aquisição de insumos para criopreservação de células da medula óssea | F17: Não | H17: 2025-07-30 | I17: 2026-07-29 | J17: Sim | M17: 2035-07-29 | N17: 07 | O17: 2026 | P17: 37890.18 | Q17: 454682.16 | R17: 4546821.6 | S17: CETEBIO | U17: Maria Lúcia Soares de Moura | V17: Jucélia Schittini da Silva Morais | W17: Iara Simões Xavier | X17: Marcela Soares Ferreira
A18: 9486.860/25 | B18: 9486860 | C18: 2320.01.0001606/2025-88 | D18: Adelvanio Francisco Lara - ME | E18: Prestação de serviços de lanche para os doadores de sangue do Hemocentro Regional de Passos. | F18: Não | H18: 2025-12-09 | I18: 2026-12-08 | J18: Sim | M18: 2035-12-08 | N18: 12 | O18: 2026 | P18: 9650 | Q18: 115800 | R18: 1158000 | S18: PAS.GAD | U18: Tânia Aparecida Piantino | V18: Weberson Luiz Mariano | W18: Iara Simões Xavier | X18: Marcela Soares Ferreira
A19: 3459/14 | B19: 3459 | C19: 2320.01.0001306/2018-61 | D19: Administradora Metrópole - Administração e Corretagem de Imóveis Ltda | E19: Locação de 01 (um) imóvel situado na Rua Grão Pará, nº 882 - Santa Efigênia, Belo Horizonte/MG, composto de hall de entrada, 02 (dois) pavimentos de garagem, pilotis e salas do 4º ao 8º andares, totalizando área de aproximadamente, 3.856,16 m². | F19: Não | J19: Sim | K19: 2026-04-25 | L19: 2026-12-31 | N19: 12 | O19: 2026 | P19: =R19/12 -> 71086.21667 | Q19: 853034.6 | R19: 853034.6 | S19: DGI.NZL | T19: Adilson Meireles Pacheco | U19: Marcelo de Aguiar Gomes | V19: Maria Beatriz Souza Melo Sarsur | W19: Victor Adler Oliveira | X19: Júlia Carolina Soares
A20: 9389.826/23 | B20: 9389826 | C20: 2320.01.0001219/2023-67 | D20: Agência de Integração Empresa Escola Ltda. AGIEL | E20: Prestação de serviço de gestão de estagiários para a Fundação Hemominas. | F20: Não | H20: 2023-07-14 | I20: 2024-07-13 | J20: Sim | K20: 2025-07-14 | L20: 2026-07-13 | M20: 2028-07-13 | N20: 07 | O20: 2026 | P20: =Tabela1[[#This Row],[VALOR ANUAL]]/12 -> 281060.8 | Q20: 3372729.6 | R20: 3372729.6 | S20: G.GGP.TDE | U20: Manuela Mota Hauck | V20: Andréa Maria Almeida Medrado | W20: Júlia Carolina Soares | X20: Victor Adler Oliveira
A21: 9470.024/25 | B21: 9470024 | C21: 2320.01.0008301/2025-34 | D21: Agenes S. da Silva Suprimentos de Informática - ME. | E21: Compra de equipamentos técnicos (lotes 08 e 09). | F21: Não | H21: 2025-06-16 | I21: 2026-06-15 | J21: Não | M21: 2026-06-15 | N21: 06 | O21: 2026 | P21: 3040 | Q21: 36480 | R21: 36480 | S21: DGI.ENC.CAT | U21: Asaph Calazans Mendes de Souza | V21: Manoel Ricardo Caires Fernandes | W21: Victor Adler Oliveira | X21: Júlia Carolina Soares
A22: 9490.295/25 | B22: 9490295 | C22: 2320.01.0017594/2025-62 | D22: Agenes S. da Silva Suprimentos de Informática - ME. | E22: Aquisição de insumos médicos hospitalares (Lote 06). | F22: Não | H22: 2025-12-15 | I22: 2026-12-14 | J22: Sim | M22: 2035-12-14 | N22: 12 | O22: 2026 | P22: =Tabela1[[#This Row],[VALOR ANUAL]]/12 -> 1545 | Q22: 18540 | R22: 18540 | S22: G.GLQ.ADM | U22: Mônica Vieira Gomes | V22: Nilda Maria Campos Lucena | W22: Júlia Carolina Soares | X22: Victor Adler Oliveira
A23: 9470.713/25 | B23: 9470713 | C23: 2320.01.0009096/2025-06 | D23: Agropecuária Fazenda do Bento Ind. E Com. Ltda. | E23: Compra de café torrado e moído e açúcar cristal (lote 01). | F23: Não | H23: 2025-06-25 | I23: 2026-06-24 | J23: Não | M23: 2026-06-24 | N23: 06 | O23: 2026 | Q23: 333760 | R23: 333760 | S23: DGI.NZL | U23: Marcelo de Aguiar Gomes | V23: Nilza de Melo Pereira | W23: Kathryna Fontana Rodrigues | X23: Iara Simões Xavier
A24: 9472.469/25 | B24: 9472469 | C24: 2320.01.0010043/2024-48 | D24: AIMARA COMÉRCIO E REPRESENTAÇÕES LTDA | E24: Aquisição de aquisição de frascos de hemocultura com equipamentos em regime de comodato | F24: Sim | H24: 2025-07-24 | I24: 2026-07-23 | J24: Sim | M24: 2035-07-23 | N24: 07 | O24: 2026 | P24: 56574.17 | Q24: 678890 | R24: 6788900.4 | S24: T.GCQ | U24: Luciana de Souza Madeira Ferreira Boy | V24: Roberto Mauro Ferreira Silva | W24: Iara Simões Xavier | X24: Marcela Soares Ferreira
A25: 9350.488/22 | B25: 9350488 | C25: 2320.01.0009625/2022-88 | D25: Allegra Tecnologia Ltda - ME | E25: Prestação de serviço de higienização e limpeza do sistema de climatização/difusores para insuflamento e retorno do ar climatizado ambiente. | F25: Não | H25: 2022-11-18 | I25: 2023-11-17 | J25: Sim | K25: 2025-11-18 | L25: 2026-11-17 | M25: 2027-11-17 | N25: 11 | O25: 2026 | P25: 1999.25 | Q25: 23991 | R25: 23991 | S25: DGI.ENC | U25: Thiago Euzébio dos Santos | V25: João Silvestre Guimarães | W25: Kathryna Fontana Rodrigues | X25: Iara Simões Xavier
A26: 9470.562/25 | B26: 9470562 | C26: 2320.01.0008887/2025-23 | D26: Allegra Tecnologia Ltda | E26: Contratação de servilos de monitoramento da qualidade do ar nas unidades da Fundação Hemominas em Uberlândia e Lagoa Santa (lotes 01 e 03). | F26: Não | H26: 2025-06-20 | I26: 2026-06-19 | J26: Sim | M26: 2035-06-19 | N26: 06 | O26: 2026 | P26: 1785 | Q26: 21420 | R26: 21420 | S26: DGI.ENC | U26: João Silvestre Guimarães | V26: Renatha Samantha Martins Blasco | W26: Victor Adler Oliveira | X26: Júlia Carolina Soares
A27: 9501939/26 | B27: 9501939 | C27: 2320.01.0000760/2026-35 | D27: Amazonas Comércio de Adesivos e Brindes Ltda - ME | E27: Prestação de serviços de confecção de crachás personalizados. | F27: Não | H27: 2026-04-25 | I27: 2027-04-24 | J27: Sim | M27: 2036-04-24 | N27: 04 | O27: 2027 | P27: 473.75 | Q27: 5685 | R27: 5685 | S27: G.GGP.PES.FREQUENCIA | U27: Sibéria Oliveira da Cruz | V27: Tiago Paulo da Silva Jorge | W27: Júlia Carolina Soares | X27: Victor Adler Oliveira
A28: 9493.404/2026 | B28: 9493404 | C28: 2320.01.0017252/2025-81 | D28: Amazônia Indústria e Comércio Ltda. | E28: Aquisição de Aquisição de Suco de Frutas Lote 01 | F28: Não | H28: 2026-01-30 | I28: 2027-01-29 | J28: Sim | M28: 2036-01-29 | N28: 01 | O28: 2027 | Q28: 421200 | R28: 421200 | S28: T.GSA.SUP | U28: Lorena Prezotti Rodrigues | V28: Maria José Souza Trancoso | W28: Kathryna Fontana Rodrigues | X28: Iara Simões Xavier
A29: 9488.022/25 | B29: 9488022 | C29: 2320.01.0017299/2025-73 | D29: Amazônia Indústria e Comércio Ltda. | E29: Aquisiição de biscoito cookie. | F29: Não | H29: 2025-12-05 | I29: 2026-12-04 | J29: Sim | M29: 2035-12-04 | N29: 12 | O29: 2026 | P29: 37854.17 | Q29: 454250 | R29: 454250 | S29: G.GLQ.ADM T.GSA.SUP | U29: Lorena Prezotti Rodrigues | V29: Juliana Pessoa Pinheiro de Azevedo | W29: Victor Adler Oliveira | X29: Júlia Carolina Soares
A30: 9361.880/22 | B30: 9361880 | C30: 2320.01.0009734/2022-55 | D30: Ambientalis Análises de Ambientes Ltda EPP - | E30: Prestação de serviço de análise da qualidade do ar proveniente dos sistemas de climatização do Hemocentro de Belo Horizonte. | F30: Não | H30: 2022-12-02 | I30: 2023-12-01 | J30: Sim | K30: 2025-12-02 | L30: 2026-12-01 | M30: 2027-12-01 | N30: 12 | O30: 2026 | P30: 490.96 | Q30: 5891.52 | R30: 29457.6 | S30: DGI.ENC | U30: João Silvestre Guimarães | V30: Renatha Samantha Martins Blasco | W30: Iara Simões Xavier | X30: Marcela Soares Ferreira
A31: 9459.809/25 | B31: 9459809 | C31: 2320.01.0008283/2024-38 | D31: Ambiente Ar Condicionado Ltda. | E31: Manutenção dos equipamentos de ar condicionado do Hemocentro de Montes Claros. | F31: Não | H31: 2025-04-11 | I31: 2030-04-10 | J31: Sim | M31: 2035-04-10 | N31: 04 | O31: 2030 | Q31: 0 | R31: 269290 | S31: MOC.GAD | U31: Daniel Nascimento Salgado | V31: Emanuelle Aparecida Bruzinga Machado | W31: Victor Adler Oliveira | X31: Júlia Carolina Soares
A32: 9459.850/25 | B32: 9459850 | C32: 2320.01.0015055/2025-36 | D32: American Tower do Brasil - Comunicação Multimídia Ltda. | E32: Contratação de serviços de telecomunicações necessários à implantação, operação, manutenção e gerenciamento de rede IP Multiserviços, de serviços de valor adicionado e de serviço de trânsito e acesso à internet, além de fornecimento de informações para a administração pública (lote 07 e 09), visando atender os Órgãos e Entidades Anuentes. | F32: Não | G32: Sim | H32: 2025-05-19 | I32: 2030-05-18 | J32: Sim | M32: 2035-05-18 | N32: 05 | O32: 2030 | P32: 34977.62 | Q32: 419731.46 | R32: 17093368.14 | S32: I.GTC.ITS | U32: Daniel Eustáquio Coutinho | V32: Fabrine Juliana Fabricio Costa / Emanuel Camilo de Oliveira | W32: Victor Adler Oliveira | X32: Júlia Carolina Soares
A33: 9459.556/25 | B33: 9459556 | C33: 2320.01.0008477/2024-38 | D33: Amplie Assessoria em Licitações Ltda. | E33: Prestação de serviços de licença de software windows. | F33: Não | H33: 2025-04-08 | I33: 2026-04-07 | J33: Não | M33: 2026-04-07 | N33: 04 | O33: 2026 | Q33: 0 | R33: 45000 | S33: I.GTC.ITS | U33: Fabrine Juliana Fabricio Costa | V33: Daniel Eustáquio Coutinho | W33: Victor Adler Oliveira | X33: Júlia Carolina Soares
A34: 9393.609/23 | B34: 9393609 | C34: 2320.01.0001032/2022-75 | D34: Apolo Refrigeração Ltda | E34: Prestação de serviços de Manutenção preventiva e corretiva em equipamentos de ar condicionado, com fornecimento de peças para o Hemocentro Regional de Uberlândia da Fundação Hemominas. | F34: Não | H34: 2023-09-30 | I34: 2024-09-29 | J34: Sim | K34: 2025-09-30 | L34: 2026-09-29 | M34: 2028-09-29 | N34: 09 | O34: 2026 | P34: =R34/12 -> 15014.26833 | Q34: 180171.24 | R34: 180171.22 | S34: UDI.GAD | U34: Márcia Regina Luis | V34: Renata Léa Silva Souza | W34: Victor Adler Oliveira | X34: Júlia Carolina Soares
A35: 9321.239/22 | B35: 9321239 | C35: 2320.01.0011069/2021-97 | D35: Apolo Refrigeração Ltda - ME | E35: Prestação de serviço de manutenção de ar condicionado e limpeza da rede de dutos. | F35: Não | H35: 2022-02-03 | I35: 2023-02-02 | J35: Sim | K35: 2026-02-03 | L35: 2027-02-02 | M35: 2027-02-02 | N35: 02 | O35: 2027 | P35: =Tabela1[[#This Row],[VALOR ANUAL]]/12 -> 7178.42 | Q35: 86141.04 | R35: 86141 | S35: GAD.SLA | U35: Marco Paulo Dias Canabrava | V35: Neide Aparecida dos Santos Reis Gonçalvez | W35: Júlia Carolina Soares | X35: Victor Adler Oliveira
A36: 9400.368/23 | B36: 9400368 | C36: 2320.01.0004846/2023-11 | D36: Argus Científica Ltda | E36: Aquisição de reagente Ferritina com comodato. | F36: Sim | H36: 2023-11-23 | I36: 2024-11-22 | J36: Sim | K36: 2025-11-23 | L36: 2026-11-22 | M36: 2028-11-22 | N36: 11 | O36: 2026 | P36: 9525.83 | Q36: 114310 | R36: 114310 | S36: HBH.T.LHEM | U36: Beatriz Nogueira de Carvalho | V36: João Henrique Fonseca de Moura | W36: Victor Adler Oliveira | X36: Júlia Carolina Soares
A37: 9430.023/24 | B37: 9430023 | C37: 2320.01.0015881/2023-50 | D37: Argus Científica Ltda | E37: Aquisição de sistema analítico completo, com equipamento em comodato e reagentes ferro sérico e capacidade ligadora de ferro. | F37: Sim | H37: 2024-06-24 | I37: 2025-06-23 | J37: Sim | K37: 2025-06-24 | L37: 2026-06-23 | M37: 2034-06-23 | N37: 06 | O37: 2026 | P37: - | Q37: 85280 | R37: 85280 | S37: HBH.T.LHEM | U37: Beatriz Nogueira de Carvalho | V37: João Henrique Fonseca de Moura | W37: Kathryna Fontana Rodrigues | X37: Iara Simões Xavier
A38: 9507.775/26 | B38: 9507775 | C38: 2320.01.0004738/2025-11 | D38: Associação Brasileira de Histocompatibilidade e Imunogenética (ABHI) | E38: Prestação de serviços de programa de controle externo de qualidade para laboratórios de histocompatibilidade. | F38: Não | H38: 2026-05-22 | I38: 2027-05-21 | J38: Sim | M38: 2036-05-21 | N38: 04 | O38: 2027 | P38: 526.25 | Q38: 6315 | R38: 6315 | S38: T.GLA.HLA | U38: Milena Batista de Oliveira | V38: Luciana Lara Viegas da Aparecida | W38: Victor Adler Oliveira | X38: Júlia Carolina Soares
A39: 9496.684/26 | B39: 9496684 | C39: 2320.01.0015615/2025-48 | D39: Associação Profisionalizante do Menor de Belo Horizonte - ASSPROM | E39: Prestação de serviços de mão de obra de adolescentes trabalhadores. | F39: Não | H39: 2026-04-02 | I39: 2027-04-01 | J39: Sim | M39: 2036-04-01 | N39: 04 | O39: 2027 | P39: 65518.45 | Q39: 786221.43 | R39: 786221.43 | S39: G.GGP.SACD | U39: Monique Camila Silva | V39: Polliany Christina de Freitas Grope Aquino | W39: Kathryna Fontana Rodrigues | X39: Iara Simões Xavier
A40: 9489.138/25 | B40: 9489138 | C40: 2320.01.0006275/2025-28 | D40: Áudio Mister Mix Ltda. | E40: Pretação de serviços de movimentação de dois analisadores PK 7300. | F40: Não | H40: 2025-12-12 | I40: 2026-12-11 | J40: Não | M40: 2026-12-11 | N40: 12 | O40: 2026 | P40: 15500 | Q40: 31000 | R40: 31000 | S40: HBH.A.MPR | U40: Douglas Augusto Rodrigues Pereira | V40: Felipe Garabini Antunes | W40: Kathryna Fontana Rodrigues | X40: Iara Simões Xavier
A41: 9439.966/24 | B41: 9439966 | C41: 2320.01.0014470/2024-23 | D41: Auto Serviço Santo Agostinho Ltda | E41: Aquisição gêneros alimentícios para lanche diário do doador de sangue do Hemonúcleo de São João del Rei. | F41: Não | H41: 2024-10-08 | I41: 2025-10-07 | J41: Sim | K41: 2025-10-08 | L41: 2026-10-07 | M41: 2034-10-07 | N41: 10 | O41: 2026 | Q41: 0 | R41: 51497.68 | S41: SJR.A.COM | U41: Adauto Rocha dos Santos | V41: Tânia Mara da Silveira Santos | W41: Victor Adler Oliveira | X41: Júlia Carolina Soares
A42: 9492.113/25 | B42: 9492113 | C42: 2320.01.0005897/2025-49 | D42: B & F Lavagem Automotiva e Predial Ltda. | E42: Prestação de serviços de higienização e limpeza de veículos. | F42: Não | H42: 2025-12-23 | I42: 2026-12-22 | J42: Sim | M42: 2035-12-22 | N42: 12 | O42: 2026 | P42: 4680.25 | Q42: 56163 | R42: 56163 | S42: G.GLQ.PRT.TRANSPORTE | U42: Roger Cássio Neves de Aguiar | V42: Anastas Falcão Quirino Chaves | W42: Victor Adler Oliveira | X42: Júlia Carolina Soares
A43: 9437.652/24 | B43: 9437652 | C43: 2320.01.0014994/2023-40 | D43: Baltazar Ribeiro Rodrigues 09314213650 - ME | E43: Prestação de Serviço de manutenção preventiva e corretiva em aparelhos de ar condicionado, incluindo fornecimento de peças - Hemonúcleo de Patos de Minas da Fundação Hemominas. | F43: Não | H43: 2024-09-23 | I43: 2025-09-22 | J43: Sim | K43: 2025-09-23 | L43: 2026-09-22 | M43: 2029-09-22 | N43: 09 | O43: 2026 | Q43: 0 | R43: 49685.32 | S43: PMI.GAD | U43: Nilza Canêdo de Magalhães | V43: Heleno de Lima Marques | W43: Victor Adler Oliveira | X43: Júlia Carolina Soares
A44: 9430.225/24 | B44: 9430225 | C44: 2320.01.0018020/2023-12 | D44: Becton Dickinson Indústrias Cirúrgicas Ltda | E44: Aquisição de Solução salina, kit contagem de células CD 34+, kit para citômetro de fluxo e kit calibração | F44: Não | H44: 2024-06-26 | I44: 2025-06-25 | J44: Sim | K44: 2025-06-26 | L44: 2026-06-25 | M44: 2034-06-25 | N44: 06 | O44: 2026 | P44: =Tabela1[[#This Row],[VALOR TOTAL]]/12 -> 16388.85333 | Q44: 196666.24 | R44: 196666.24 | S44: CETEBIO | U44: Maria Lúcia Soares de Moura | V44: Thiago Jocides Arruda Batista | W44: Kathryna Fontana Rodrigues | X44: Iara Simões Xavier
A45: 9481.974/25 | B45: 9481974 | C45: 2320.01.0015815/2025-80 | D45: Becton Dickinson Indústrias Cirúrgicas Ltda | E45: Compra de anticorpos (lote 01). | F45: Não | H45: 2025-11-07 | I45: 2026-11-06 | J45: Sim | M45: 2035-11-06 | N45: 11 | O45: 2026 | P45: 193.5 | Q45: 2322 | R45: 23220 | S45: CETEBIO | U45: Maria Lúcia Soares de Moura | V45: Maurício Colombini Martins | W45: Iara Simões Xavier | X45: Marcela Soares Ferreira
A46: 9280.256/21 | B46: 9280256 | C46: 2320.01.0014726/2019-13 | D46: BIO-RAD Laboratórios Brasil Ltda | E46: Aquisição de sistema analítico para realização dos testes imunohematológicos do receptor e paciente, com equipamentos em comodato. | F46: Sim | H46: 2021-06-02 | I46: 2022-06-01 | J46: Sim | K46: 2025-06-02 | L46: 2026-06-01 | M46: 2026-06-01 | N46: 06 | O46: 2026 | P46: 165677.44 | Q46: 1988129.3 | R46: 1988129.3 | S46: T.GLA.CIH | T46: Luciana Cayres Schmidt Patrícia Savini | U46: Luciana Cayres Schmidt | W46: Victor Adler Oliveira | X46: Júlia Carolina Soares
A47: 9454.460/25 | B47: 9454460 | C47: 2320.01.0003868/2025-27 | D47: BIO-RAD Laboratórios Brasil Ltda | E47: Aquisição de reagentes para testes imunohematológicos (lotes 02 e 03). | F47: Não | H47: 2025-03-13 | I47: 2026-03-12 | J47: Sim | K47: 2026-03-13 | L47: 2027-03-12 | M47: 2035-03-12 | N47: 03 | O47: 2027 | Q47: 35657.28 | R47: 35657.28 | S47: T.GLA.CIH | U47: Luciana Cayres Schmidt | V47: Fabrizzio de Oliveira Dias | W47: Kathryna Fontana Rodrigues | X47: Iara Simões Xavier
A48: 9471.996/25 | B48: 9471996 | C48: 2320.01.0010384/2025-53 | D48: BIO-RAD Laboratórios Brasil Ltda | E48: Aquisição de conjunto analítico para realização de testes imunohematológicos, com equipamento em comodato. | F48: Sim | H48: 2025-07-29 | I48: 2026-07-28 | J48: Sim | M48: 2035-07-28 | N48: 07 | O48: 2026 | P48: =Tabela1[[#This Row],[VALOR TOTAL]]/12 -> 487659.1667 | Q48: 5851910 | R48: 5851910 | S48: T.GLA.CIH | U48: Sabrina Vieira Espíndola | V48: Nauhara Vieira de Castro Barroso | W48: Kathryna Fontana Rodrigues | X48: Iara Simões Xavier
A49: 9394.630/23 | B49: 9394630 | C49: 2320.01.0013744/2023-34 | D49: BIO-RAD Laboratórios Brasil Ltda | E49: Aquisição de reagentes para imunohematologia (Lotes 01, 02 e 03). | F49: Sim | H49: 2023-09-30 | I49: 2024-09-29 | J49: Sim | K49: 2025-09-30 | L49: 2026-09-29 | M49: 2028-09-29 | N49: 09 | O49: 2026 | P49: 91390.1 | Q49: 1096681.2 | R49: 5483406 | S49: T.GLA.CIH | U49: Luciana Cayres Schmidt | V49: Carolina Andrade | W49: Iara Simões Xavier | X49: Marcela Soares Ferreira
A50: 9468.364/25 | B50: 9468364 | C50: 2320.01.0000050/2025-02 | D50: BIO-RAD Laboratórios Brasil Ltda | E50: Aquisição de reagentes para realização de testes imunohematológicos (lotes 01 e 06). | F50: Não | H50: 2025-05-21 | I50: 2026-05-20 | J50: Sim | M50: 2035-05-20 | N50: 05 | O50: 2026 | Q50: 0 | R50: 73190.36 | S50: T.GLA.CIH | U50: Luciana Cayres Schmidt | V50: Fabrizzio de Oliveira Dias | W50: Victor Adler Oliveira | X50: Júlia Carolina Soares
A51: 9483.072/25 | B51: 9483072 | C51: 2320.01.0016094/2025-16 | D51: Biocell Biotecnologia Ltda | E51: Aquisição de reagentes para testes imunohematológicos (Lote 06). | F51: Não | H51: 2025-11-12 | I51: 2026-11-11 | J51: Sim | M51: 2035-11-11 | N51: 11 | O51: 2026 | Q51: 1550 | R51: 1550 | S51: T.GLA.CIH | U51: Luciana Cayres Schmidt | V51: Ariane Ribeiro da Silva | W51: Kathryna Fontana Rodrigues | X51: Iara Simões Xavier
A52: 9502.051/26 | B52: 9502051 | C52: 2320.01.0005942/2026-92 | D52: Biocell Biotecnologia Ltda | E52: Aquisição de reagentes necessário para tipificação HLA (média/alta resolução) de amostras de Doadores e Receptores de Medula Óssea e órgãos sólidos de todo o Estado de Minas Gerais. (Loe 01). | F52: Não | H52: 2026-04-23 | I52: 2027-04-22 | J52: Não | M52: 2027-04-22 | N52: 04 | O52: 2027 | Q52: 269.38 | R52: 269.38 | S52: T.GLA.HLA | U52: Milena Batista de Oliveira | V52: Ricardo Alves de Cristo | W52: Iara Simões Xavier | X52: Kathryna Fontana Rodrigues
A53: 9470.571/25 | B53: 9470571 | C53: 2320.01.0008902/2025-06 | D53: Biocontrol Ltda. | E53: Contratação de serviços de monitoramento da qualidade do ar nas unidades da Fundação Hemominas em Uberada e Governador Valadares (lotes 02 e 05). | F53: Não | H53: 2025-06-20 | I53: 2026-06-19 | J53: Sim | M53: 2035-06-19 | N53: 06 | O53: 2026 | P53: 1942.5 | Q53: 23310 | R53: 23310 | S53: DGI.ENC | U53: João Silvestre Guimarães | V53: Renatha Samantha Martins Blasco | W53: Victor Adler Oliveira | X53: Júlia Carolina Soares
A54: 9480.463/25 | B54: 9480463 | C54: 2320.01.0010263/2025-22 | D54: Biohealth Comércio e Importação de Equipamentos e Produtos Médicos Ltda | E54: Aquisição de cânula uso laboratório | F54: Não | H54: 2025-10-14 | I54: 2026-10-13 | J54: Sim | M54: 2035-10-13 | N54: 10 | O54: 2026 | Q54: 26748 | R54: 26748 | S54: CETEBIO | U54: Maria Lúcia Soares de Moura | V54: Jucélia Schittini da Silva Morais | W54: Kathryna Fontana Rodrigues | X54: Iara Simões Xavier
A55: 9412.683/24 | B55: 9412683 | C55: 2320.01.0011232/2023-55 | D55: Biologística Soluções em Logística e Serviços Ltda | E55: Prestação de serviço de transporte de material biológico de origem humana ou animal, por via aérea e rodoviária. | F55: Não | H55: 2024-03-01 | I55: 2025-02-28 | J55: Sim | K55: 2026-03-01 | L55: 2027-02-28 | M55: 2029-02-28 | N55: 02 | O55: 2027 | P55: =R55/12 -> 426157.3433 | Q55: 5113888.12 | R55: 5113888.12 | S55: G.GLQ | U55: Gisele de Fátima Melo | V55: Rosangela Vital de Almeida | W55: Victor Adler Oliveira | X55: Júlia Carolina Soares
A56: 9319.188/22 | B56: 9319188 | C56: 2320.01.0000684/2022-62 | D56: Biomédica Equipamentos e Suprimentos Hospitalares Ltda | E56: Aquisição de reagentes para agregação plaquetária (ADP, lote 03, item 01). | F56: Não | H56: 2022-01-25 | I56: 2023-01-24 | J56: Sim | K56: 2026-01-25 | L56: 2027-01-24 | M56: 2027-01-24 | N56: 01 | O56: 2027 | P56: 773.33 | Q56: 9280 | R56: 46399.8 | S56: HBH.T.LHEM | U56: Beatriz Nogueira de Carvalho | V56: João Henrique Fonseca de Moura | W56: Iara Simões Xavier | X56: Marcela Soares Ferreira
A57: 9397.823/23 | B57: 9397823 | C57: 2320.01.0003862/2023-98 | D57: Biomédica Equipamentos e Suprimentos Hospitalares Ltda | E57: Prestação de serviço de Manutenção Preventiva, Corretiva e Calibração do Agregômetro Plaquetas Chronolog 700. | F57: Não | H57: 2023-11-01 | I57: 2024-10-31 | J57: Sim | K57: 2025-11-01 | L57: 2026-10-31 | M57: 2028-10-31 | N57: 10 | O57: 2026 | P57: =R57/12 -> 6343.75 | Q57: 76125 | R57: 76125 | S57: DGI.ENC | U57: Felipe Garabini Antunes | V57: Eduardo da Silva Oliveira | W57: Kathryna Fontana Rodrigues | X57: Iara Simões Xavier
A58: 9389.604/23 | B58: 9389604 | C58: 2320.01.0016138/2021-04/2021-97 | D58: Biometrix Diagnóstica Ltda. | E58: Aquisição de Sistema analítico completo para realização de tipificação de HLA por metodologia de sequenciamento de nova geração – NGS. | F58: Sim | H58: 2023-07-04 | I58: 2024-07-03 | J58: Sim | K58: 2025-07-04 | L58: 2026-07-03 | M58: 2028-07-03 | N58: 07 | O58: 2026 | P58: =Tabela1[[#This Row],[VALOR ANUAL]]/12 -> 687781.1267 | Q58: 8253373.52 | R58: 8253373.52 | S58: T.GLA.HLA | U58: Felipe Carlos Brito de Souza | V58: Luciana Lara Viegas da Aparecida | W58: Júlia Carolina Soares | X58: Victor Adler Oliveira
A59: 9392.802/23 | B59: 9392802 | C59: 2320.01.0012180/2023-67 | D59: Biometrix Diagnóstica Ltda. | E59: Aquisição de Insumos e reagentes necessário para tipificação HLA (média/alta resolução) de amostras de Doadores e Receptores de Medula Óssea (lotes 03 e 04). | F59: Não | H59: 2023-08-25 | I59: 2024-08-24 | J59: Sim | K59: 2025-08-25 | L59: 2026-08-24 | M59: 2028-08-24 | N59: 08 | O59: 2026 | P59: - | R59: 34341.7 | S59: T.GLA.HLA | U59: Felipe Carlos Brito de Souza | V59: Luciana Lara Viegas da Aparecida | W59: Victor Adler Oliveira | X59: Júlia Carolina Soares
A60: 9504.055/26 | B60: 9504055 | C60: 2320.01.0010297/2025-74 | D60: Bioprolab Laboratório de Controle de Qualidade Ltda | E60: Prestação de serviços de monitoramento da qualidade do ar das áreas climatizadas do Hemocentro de Montes Claros. | F60: Não | H60: 2026-04-29 | I60: 2027-04-28 | J60: Sim | M60: 2036-04-28 | N60: 04 | O60: 2027 | Q60: 14820 | R60: 14820 | S60: MOC.GAD | U60: Daniel Nascimento Salgado | V60: Nátaly Mariana Silva | W60: Kathryna Fontana Rodrigues | X60: Iara Simões Xavier
A61: 9445.649/24 | B61: 9445649 | C61: 2320.01.0010119/2024-33 | D61: Biosave - Diagnóstica Ltda - EPP. | E61: Aquisição de antígeno de VDRL | F61: Não | H61: 2024-12-16 | I61: 2025-12-15 | J61: Sim | K61: 2025-12-16 | L61: 2026-12-15 | M61: 2034-12-15 | N61: 12 | O61: 2026 | Q61: 1575 | R61: 1575 | S61: T.GLA.CSO | U61: Sônia Mara Nunes da Silva | V61: Leonardo Antônio Renna Batalha | W61: Kathryna Fontana Rodrigues | X61: Iara Simões Xavier
A62: 9459.553/25 | B62: 9459553 | C62: 2320.01.0005167/2025-68 | D62: Biosave - Diagnóstica Ltda - EPP. | E62: Aquisição de tubos e ponteiras (Lote 03). | F62: Não | H62: 2025-04-04 | I62: 2026-04-03 | J62: Sim | K62: 2026-04-04 | L62: 2027-04-03 | M62: 2035-04-03 | N62: 04 | O62: 2027 | Q62: 40770 | R62: 40770 | S62: T.GLA | U62: João Paulo dos Santos Barbosa | V62: Nilda Maria Campos Lucena | W62: Victor Adler Oliveira | X62: Júlia Carolina Soares
A63: 9447.087/24 | B63: 9447087 | C63: 2320.01.0004984/2024-65 | D63: BMA Comércio de Produtos Aromáticos e Locação de Equipamentos Eletroeletrônicos Ltda | E63: Prestação de Serviço de purificação, desinfecção e aromatização de banheiros (com equipamentos em comodato), para o Hemocentro de Belo Horizonte da Fundação Hemominas. | F63: Sim | H63: 2024-12-27 | I63: 2025-12-26 | J63: Sim | K63: 2025-12-27 | L63: 2026-12-26 | M63: 2034-12-26 | N63: 12 | O63: 2026 | P63: =Tabela1[[#This Row],[VALOR TOTAL]]/12 -> 2470 | Q63: 29640 | R63: 29640 | S63: HBH.A.SGS | U63: Hamilton Silva | W63: Kathryna Fontana Rodrigues | X63: Iara Simões Xavier
A64: 9388.815/23 | B64: 9388815 | C64: 2320.01.0004662/2022-35 | D64: BR Life LCC representada pela empresa Biometrix Diagnóstica Ltda. | E64: Aquisição de kits reagentes de histocompatibilidade, com cessão de equipamentos em comodato. | F64: Sim | H64: 2023-06-20 | I64: 2024-06-19 | J64: Sim | K64: 2025-06-20 | L64: 2026-06-19 | M64: 2028-06-19 | N64: 06 | O64: 2026 | P64: 202349 | Q64: 2428189.74 | R64: 12140940 | S64: T.GLA.HLA | U64: Felipe Carlos Brito de Souza | V64: Nathália Gomide Cruz | W64: Iara Simões Xavier | X64: Marcela Soares Ferreira
A65: 9459.853/25 | B65: 9459853 | C65: 2320.01.0015058/2025-52 | D65: BRASIL TECPAR SERVIÇOS DE TELECOMUNICAÇÕES S.A | E65: Contratação de serviços de telecomunicações necessários à implantação, operação, manutenção e gerenciamento de rede IP Multiserviços, de serviços de valor adicionado e de serviço de trânsito e acesso à internet, além de fornecimento de informações para a administração pública (lote 12), visando atender os Órgãos e Entidades Anuentes. | F65: Não | G65: Sim | H65: 2025-05-19 | I65: 2030-05-18 | J65: Sim | M65: 2035-05-18 | N65: 05 | O65: 2030 | P65: =Tabela1[[#This Row],[VALOR ANUAL]]/12 -> 746533.65 | Q65: =Tabela1[[#This Row],[VALOR TOTAL]]/5 -> 8958403.8 | R65: 44792019 | S65: I.GTC.ITS | U65: Daniel Eustáquio Coutinho | V65: Fabrine Juliana Fabricio Costa / Emanuel Camilo de Oliveira | W65: Kathryna Fontana Rodrigues | X65: Iara Simões Xavier
A66: 9434.090/24 | B66: 9434090 | C66: 2320.01.0002049/2024-61 | D66: Brasoftware Informática Ltda. | E66: Subscrições de licenças do software Adobe Creative Cloud for Teams Complete | F66: Não | H66: 2024-08-05 | I66: 2025-08-04 | J66: Sim | K66: 2025-08-05 | L66: 2026-08-04 | M66: 2034-08-04 | N66: 08 | O66: 2026 | P66: =R66/12 -> 4194.891667 | Q66: 50338.68 | R66: 50338.7 | S66: I.GTC.ADS | U66: Renato Vianna do Valle Júnior | V66: Luciene Aparecida Nogueira Queiroz | W66: Victor Adler Oliveira | X66: Júlia Carolina Soares
A67: 9486.895/25 | B67: 9486895 | C67: 2320.01.0014479/2025-68 | D67: Brasoftware Informática Ltda. | E67: Compra Central - Licenças Microsoft | F67: Não | G67: Sim | H67: 2025-12-10 | I67: 2028-12-09 | J67: Sim | M67: 2035-12-09 | N67: 12 | O67: 2028 | Q67: 12714778 | R67: 12714778 | S67: I.GTC.ITS | U67: Daniel Eustáquio Coutinho | V67: Fabrine JuliaFabricio Costa | W67: Júlia Carolina Soares | X67: Victor Adler Oliveira
A68: 9332.206/22 | B68: 9332206 | C68: 2320.01.0011584/2021-63 | D68: Bravo Ar Service Comércio Máquinas e Equipamentos Ltda | E68: Prestação de serviço de manutenção preventiva e corretiva em aparelho de ar condicionado do Hemocentro Regional de Uberaba, da Fundação Hemominas. | F68: Não | H68: 2022-04-29 | I68: 2023-04-28 | J68: Sim | K68: 2026-04-29 | L68: 2027-04-28 | M68: 2027-04-28 | N68: 04 | O68: 2027 | P68: =Tabela1[[#This Row],[VALOR ANUAL]]/12 -> 9025.854167 | Q68: 108310.25 | R68: 108310.25 | S68: URA.GAD | U68: Leila Pereira | V68: Lúcia de Fátima Oliveira | W68: Júlia Carolina Soares | X68: Victor Adler Oliveira
A69: 9440.837/24 | B69: 9440837 | C69: 2320.01.0004045/2024-04 | D69: C & D indústria e Comércio de Alimentos Ltda - EPP | E69: Aquisição de produtos e insumos que compõem o lanche diário do Doador Voluntário de Sangue e para a Semana Nacional do Doador de Sangue, aquisição de adoçantes para servidores e doadores, contratação da prestação de fornecimento de gêneros alimentícios e coffee break para a comemoração ao Dia do Paciente, em Montes Claros. | F69: Não | H69: 2024-10-25 | I69: 2025-10-24 | J69: Sim | K69: 2025-10-25 | L69: 2026-10-24 | M69: 2034-10-24 | N69: 10 | O69: 2026 | Q69: 156677.56 | R69: 152677.56 | S69: MOC.GAD | U69: Daniel Nascimento Salgado | V69: Rodney Araújo Viana | W69: Victor Adler Oliveira | X69: Júlia Carolina Soares
A70: 9374.623/23 | B70: 9374623 | C70: 2320.01.0012728/2022-18 | D70: C M Pingo Ar Condicionado | E70: Prestação de serviço de manutenção preventiva e corretiva em aparelhos de ar condicionado para o Hemonúcleo de Divinópolis da Fundação Hemominas. | F70: Não | H70: 2023-03-03 | I70: 2024-03-02 | J70: Sim | K70: 2026-03-03 | L70: 2027-03-02 | M70: 2028-03-02 | N70: 03 | O70: 2027 | P70: =Tabela1[[#This Row],[VALOR ANUAL]]/12 -> 4346.1 | Q70: 52153.2 | R70: 54377.66 | S70: DIV.GAD | U70: Nilba Valéria Pinheiro de Oliveira | V70: Nayara Suélem Silva | W70: Júlia Carolina Soares | X70: Victor Adler Oliveira
A71: 9482.009/25 | B71: 9482009 | C71: 2320.01.0009587/2025-38 | D71: CAB Tecnologia e Sistemas Comércio Ltda. | E71: Prestação de serviços de outsourcing de impressão. | F71: Não | H71: 2025-11-07 | I71: 2026-11-06 | J71: Não | M71: 2026-11-06 | N71: 11 | O71: 2026 | P71: 105192.75 | Q71: 1262313 | R71: 1262313 | S71: I.GTC.ITS | U71: Daniel Eustáquio Coutinho | V71: Fabrine Juliana Fabricio Costa | W71: Victor Adler Oliveira | X71: Júlia Carolina Soares
A72: 9316.151/21 | B72: 9316151 | C72: 2320.01.0013685/2020-84 | D72: Caldas Extintores e Equipamentos Contra Incêndio Eireli | E72: Prestação de serviço de manutenção dos sistemas de prevenção e combate a incêndio e pânico das Unidades da Fundação Hemominas - Uberlândia (lote 07). | F72: Não | H72: 2022-01-07 | I72: 2023-01-06 | J72: Sim | K72: 2026-01-07 | L72: 2027-01-06 | M72: 2027-01-06 | N72: 01 | O72: 2027 | P72: =R72/12 -> 815.0033333 | Q72: 9780.04 | R72: 9780.04 | S72: UDI.A.COM | U72: Renata Léa Silva Souza | V72: Márcia Regina Luis | W72: Kathryna Fontana Rodrigues | X72: Iara Simões Xavier
A73: 9501.806/26 | B73: 9501806 | C73: 2320.01.0012267/2024-43 | D73: Carlos Eduardo Silva & MS Ltda. | E73: Aquisição de gás carbônico: tipo medicinal e tipo industrial. | F73: Sim | H73: 2026-04-24 | I73: 2027-04-23 | J73: Sim | M73: 2036-04-23 | N73: 04 | O73: 2027 | P73: 6231.5 | Q73: 74778 | R73: 74778 | S73: CETEBIO | U73: Diogo Vital Mota | V73: Maurício Colombini Martins | W73: Júlia Carolina Soares | X73: Victor Adler Oliveira
A74: 9396.909/23 | B74: 9396909 | C74: 2320.01.0005396/2023-02 | D74: CEI - Comércio, Exportação e Importação de Materiais Médicos Ltda. | E74: Prestação de serviço de locação de equipamentos de redução de patógenos (Lote 02) | F74: Não | H74: 2023-11-10 | I74: 2024-11-09 | J74: Sim | K74: 2025-11-10 | L74: 2026-11-09 | M74: 2027-11-09 | N74: 11 | O74: 2026 | P74: =R74/12 -> 33000 | Q74: 396000 | R74: 396000 | S74: T.GCQ / DGI.ENC | U74: Adilson Meireles Pacheco | V74: Felipe Garabini Antunes | W74: Kathryna Fontana Rodrigues | X74: Iara Simões Xavier
A75: 9438.029/24 | B75: 9438029 | C75: 2320.01.0014026/2024-80 | D75: CEI - Comércio Exportação e Importação de Materiais Médicos Ltda. | E75: Aquisição de filtros para remoção de leucócitos em concentrado de plaquetas (Lote 03). | F75: Não | H75: 2024-10-07 | I75: 2025-10-06 | J75: Sim | K75: 2025-10-07 | L75: 2026-10-06 | M75: 2034-10-06 | N75: 10 | O75: 2026 | P75: =Tabela1[[#This Row],[VALOR ANUAL]]/12 -> 2706.666667 | Q75: 32480 | R75: 32480 | S75: T.GCQ | U75: Roberto Mauro Ferreira Silva | W75: Júlia Carolina Soares | X75: Victor Adler Oliveira
A76: 9440.672/24 | B76: 9440672 | C76: 2320.01.0007173/2024-35 | D76: CEI - Comércio, Exportação e Importação de Materiais Médicos Ltda. | E76: Aquisição de dispositivo estéril para transferência de componentes sanguíneos - Polling Set. | F76: Não | H76: 2024-10-21 | I76: 2025-10-20 | J76: Sim | K76: 2025-10-21 | L76: 2026-10-20 | M76: 2034-10-20 | N76: 10 | O76: 2026 | P76: 98666.67 | Q76: 1184000 | R76: 592000 | S76: T.GCQ | U76: Ana Paula de Morais | V76: Gabriela Coelho de Rezende | W76: Victor Adler Oliveira | X76: Júlia Carolina Soares
A77: 9459.868/25 | B77: 9459868 | C77: 2320.01.0013884/2024-34 | D77: CEI - Comércio, Exportação e Importação de Materiais Médicos Ltda. | E77: Aquisição de dispositivo estéril para transferência e coleta de amostras de concentrados de plaquetas (CP) em sistema fechado. | F77: Não | H77: 2025-04-14 | I77: 2026-04-13 | J77: Sim | K77: 2026-04-14 | L77: 2027-04-13 | M77: 2035-04-13 | N77: 04 | O77: 2027 | P77: 56250 | Q77: 675000 | R77: 675000 | S77: T.GCQ | U77: Luciana de Souza Madeira Ferreira Boy | V77: Ana Paula de Morais | W77: Victor Adler Oliveira | X77: Júlia Carolina Soares
A78: 9505.719/26 | B78: 9505719 | C78: 2320.01.0009981/2025-70 | D78: CEI - Comércio, Exportação e Importação de Materiais Médicos Ltda. | E78: Aquisição de filtros para remoção de leucócitos em concentrado de plaquetas. | F78: Não | H78: 2026-05-14 | I78: 2027-05-13 | J78: Não | M78: 2027-05-13 | N78: 05 | O78: 2027 | Q78: 170880 | R78: 170880 | S78: T.GCQ | U78: Roberto Mauro Ferreira Silva | V78: Alexander Lúcio de Sá Araújo | W78: Júlia Carolina Soares | X78: Victor Adler Oliveira
A79: 9372.092/23 | B79: 9372092 | C79: 2320.01.0016836/2022-70 | D79: Celasa Análises Ltda - ME | E79: Prestação de serviços de análise e monitoramento da qualidade da água nas edificações utilizadas pela Fundação Hemominas (Lote 01). | F79: Não | H79: 2023-03-16 | I79: 2024-03-15 | J79: Sim | K79: 2026-03-16 | L79: 2027-03-15 | M79: 2028-03-15 | N79: 03 | O79: 2027 | P79: =Tabela1[[#This Row],[VALOR TOTAL]]/12 -> 1626.788333 | Q79: 19521.46 | R79: 19521.46 | S79: I.GIF.AQE | U79: Jéssica Rodrigues Barbosa | V79: Leila Guedes Alvim | W79: Kathryna Fontana Rodrigues | X79: Iara Simões Xavier
A80: 9434.240/24 | B80: 9434240 | C80: 2320.01.0001605/2024-21 | D80: Celasa Análises Ltda - ME | E80: Prestação de serviços de coleta e análise do efluente oriundo do Hemocentro Regional de Juiz de Fora. | F80: Não | H80: 2024-08-06 | I80: 2025-08-05 | J80: Sim | K80: 2025-08-06 | L80: 2026-08-05 | M80: 2034-08-05 | N80: 08 | O80: 2026 | P80: 665.365 | Q80: 7984.44 | R80: 7984.38 | S80: GAD.JFO | U80: Victor Valente Campos | V80: Fernando dos Santos Henriques | W80: Victor Adler Oliveira | X80: Júlia Carolina Soares
A81: 9473.316/25 | B81: 9473316 | C81: 2320.01.0013928/2024-10 | D81: Celasa Análises Ltda. | E81: Contratação de sesrviços de monitoramento microbiológico ambiental dos ambientes controlados (sala limpa e cabines de segurança biológica) do CETEBIO. | F81: Não | H81: 2025-08-06 | I81: 2026-08-05 | J81: Sim | M81: 2035-08-05 | N81: 08 | O81: 2026 | P81: =Tabela1[[#This Row],[VALOR TOTAL]]/12 -> 9552 | Q81: 114624 | R81: 114624 | S81: CETEBIO | U81: Maria Lúcia Soares de Moura | V81: Jucélia Schittini da Silva Morais | W81: Kathryna Fontana Rodrigues | X81: Iara Simões Xavier
A82: 9492.001/25 | B82: 9492001 | C82: 2320.01.0005681/2025-61 | D82: Celasa Análises Ltda. | E82: Prestação de serviços de monitoramento da qualidade do ar das áreas climatizadas do Hemocentro Regional de Juiz de Fora, | F82: Não | H82: 2025-12-23 | I82: 2026-12-22 | J82: Sim | M82: 2035-12-22 | N82: 12 | O82: 2026 | Q82: 0 | R82: 10576.8 | S82: JFO.A.MEQ | U82: Victor Valente Campos | V82: Fernando dos Santos Henriques | W82: Júlia Carolina Soares | X82: Victor Adler Oliveira
A83: 9484.054/25 | B83: 9484054 | C83: 2320.01.0016050/2025-40 | D83: Cellco Biotec do Brasil Ltda. | E83: Aquisição de reagentes para testes imunohematológicos (Lotes 09, 10, 15 e 16). | F83: Não | H83: 2025-11-17 | I83: 2026-11-16 | J83: Sim | M83: 2035-11-16 | N83: 11 | O83: 2026 | Q83: 4600 | R83: 4660 | S83: T.GLA.CIH | U83: Luciana Cayres Schmidt | V83: Ariane Ribeiro da Silva | W83: Kathryna Fontana Rodrigues | X83: Iara Simões Xavier
A84: 9434.231/24 | B84: 9434231 | C84: 2320.01.0007141/2024-26 | D84: CEMIG Distribuição S/A | E84: o estabelecimento das condições, procedimentos, direitos e obrigações das PARTES que regularão a conexão das instalações da unidade de consumo do ACESSANTE ao SISTEMA DE DISTRIBUIÇÃO operado pela CEMIG D e o uso desse SISTEMA DE DISTRIBUIÇÃO pelo ACESSANTE em sua unidade inscrita no CNPJ/MF nº 26.388.330/0001-90, Inscrição Estadual nº 062779821-0031, na Alameda Ezequiel Dias nº 321, Bairro Centro, Município de Belo Horizonte, Minas Gerais, na tensão contratada de 220 V, em rede subterrânea | F84: Não | H84: 2024-08-06 | K84: 2025-08-06 | L84: 2026-08-05 | M84: 2025-08-05 | N84: 08 | O84: 2026 | P84: =Tabela1[[#This Row],[VALOR ANUAL]]/12 -> 217025.6875 | Q84: 2604308.25 | R84: 2604308.25 | S84: HBH.A.MPR | U84: Douglas Augusto Rodrigues Pereira | V84: Paula Maria Leão Mendes Roenick | W84: Júlia Carolina Soares | X84: Victor Adler Oliveira
A85: 9434.213/24 | B85: 9434213 | C85: 2320.01.0004285/2024-23 | D85: CEMIG Distribuição S/A | E85: o estabelecimento das condições, procedimentos, direitos e obrigações das PARTES que regularão a conexão das instalações da unidade de consumo do ACESSANTE ao SISTEMA DE DISTRIBUIÇÃO operado pela CEMIG D e o uso desse SISTEMA DE DISTRIBUIÇÃO pelo ACESSANTE em sua unidade inscrita no CNPJ/MF nº 26.388.330/0001-90, Inscrição Estadual nº 0627798210031, na Av Levino De Souza 1845 CO, Bairro Umuarama, Município de UBERLANDIA, Estado de Minas Gerais, na tensão contratada de 13,8 kV | F85: Não | H85: 2024-08-06 | K85: 2025-08-06 | L85: 2026-08-05 | M85: 2034-08-05 | N85: 08 | O85: 2026 | P85: =Tabela1[[#This Row],[VALOR TOTAL]]/12 -> 5261.986667 | Q85: 63143.84 | R85: 63143.84 | S85: UDI.A.COM | U85: Márcia Regina Luis | V85: Renata Léa Silva Souza | W85: Kathryna Fontana Rodrigues | X85: Iara Simões Xavier
A86: 9441.722/24 | B86: 9441722 | C86: 2320.01.0009885/2024-46 | D86: CEMIG Distribuição S/A | E86: o estabelecimento das condições, procedimentos, direitos e obrigações das PARTES que regularão a conexão das instalações da unidade de consumo do ACESSANTE ao Sistema de Distribuição operado pela CEMIG D e o uso desse Sistema de Distribuição pelo ACESSANTE em sua unidade inscrita no CNPJ/MF nº 26.388.330/0001-90, Inscrição Estadual nº 0627798210031, na RUA GOIABEIRAS, 779, Bairro INDUSTRIAL, situada no Município de LAGOA SANTA, Estado de Minas Gerais, na tensão contratada de 13,8 kV. | F86: Não | H86: 2024-12-04 | L86: INDETERMINADA | P86: 39781.35 | Q86: 514516.15 | R86: 514516.15 | S86: CETEBIO | U86: Maria Lúcia Soares de Moura | W86: Kathryna Fontana Rodrigues | X86: Iara Simões Xavier
A87: 9443.388/24 | B87: 9443388 | C87: 2320.01.0009009/2024-30 | D87: CEMIG Distribuição S/A | E87: o estabelecimento das condições, procedimentos, direitos e obrigações das PARTES que regularão a conexão das instalações da unidade de consumo do ACESSANTE ao Sistema de Distribuição operado pela CEMIG D e o uso desse Sistema de Distribuição pelo ACESSANTE em sua unidade inscrita no CNPJ/MF nº 26.388.330/0002-70, na RUA URBINO VIANA, 640 HP, Bairro CIDADE SANTA MARIA, situada no Município de MONTES CLAROS, Estado de Minas Gerais, na tensão contratada de 13,8 kV. | F87: NÃO | H87: 2024-12-04 | L87: INDETERMINADA | P87: 27217.91 | Q87: 326614.92 | R87: 326614.92 | S87: MOC.A.COM | U87: Gasparina Meurelle Santos Chaves | W87: Iara Simões Xavier | X87: Marcela Soares Ferreira
A88: 9440.024/24 | B88: 9440024 | C88: 2320.01.0009521/2024-77 | D88: CEMIG Distribuição S/A | E88: o estabelecimento das condições, procedimentos, direitos e obrigações das PARTES que regularão a conexão das instalações da unidade de consumo do ACESSANTE ao Sistema de Distribuição operado pela CEMIG D e o uso desse Sistema de Distribuição pelo ACESSANTE em unidade inscrita no CNPJ/MF nº 26.388.330/0004-32, na AV DOS ANDRADAS , 266, Bairro CENTRO, situada no Município de JUIZ DE FORA, Estado de Minas Gerais, na tensão contratada de 22 kV. | F88: Não | H88: 2024-12-04 | L88: INDETERMINADA | P88: 26744.27 | Q88: 320931.24 | R88: 349139.4 | S88: JFO.A.MEQ | U88: Victor Valente Campos | V88: Fernando dos Santos Henriques | W88: Victor Adler Oliveira | X88: Júlia Carolina Soares
A89: 9442.145/24 | B89: 9442145 | C89: 2320.01.0008465/2024-71 | D89: CEMIG Distribuição S/A | E89: o estabelecimento das condições, procedimentos, direitos e obrigações das PARTES que regularão a conexão das instalações da unidade de consumo do ACESSANTE ao Sistema de Distribuição operado pela CEMIG D e o uso desse Sistema de Distribuição pelo ACESSANTE em sua unidade inscrita no CNPJ/MF nº 26.388.330/0003-51, na RUA RUI BARBOSA 149 HP, Bairro CENTRO, situada no Município de GOVERNADOR VALADARES, Estado de Minas Gerais, na tensão contratada de 13,8 kV. | F89: Não | H89: 2024-12-04 | L89: INDETERMINADA | P89: 23404.09 | Q89: 280849.08 | R89: 302699.2 | S89: GOV.GAD | U89: Bruno Sousa Macedo | V89: Deivandro Lessa | W89: Victor Adler Oliveira | X89: Júlia Carolina Soares
A90: 9483.915/25 | B90: 9483915 | C90: 2320.01.0011596/2025-18 | D90: CENTERLAB - Central de Artigos Para Laboratórios | E90: Compra de reagente dosagem de proteína. | F90: Não | H90: 2025-11-13 | I90: 2026-11-12 | J90: Não | M90: 2026-11-12 | N90: 11 | O90: 2026 | P90: =Tabela1[[#This Row],[VALOR TOTAL]]/12 -> 240.75 | Q90: 2889 | R90: 2889 | S90: T.GCQ | U90: Roberto Mauro Ferreira Silva | V90: Luciana de Souza Madeira Ferreira Boy | W90: Kathryna Fontana Rodrigues | X90: Iara Simões Xavier
A91: 9396.908/23 | B91: 9396908 | C91: 2320.01.0005396/2023-02 | D91: CERUS Corporation e Medical Technologies Innovators, Inc representadas pela empresa CEI Comércio Exportação Importação de Material Médico Ltda. | E91: Aquisição de kits descartáveis de reagentes para redução de patógenos (Lote 01) | F91: Não | H91: 2023-11-09 | I91: 2024-11-08 | J91: Sim | K91: 2025-11-09 | L91: 2026-11-08 | M91: 2027-11-08 | N91: 11 | O91: 2026 | P91: =Tabela1[[#This Row],[VALOR TOTAL]]/12 -> 751500 | Q91: 9018000 | R91: 9018000 | S91: T.GCQ | U91: Flávia Naves Givisiez | V91: Gabriela Coelho de Rezende | W91: Kathryna Fontana Rodrigues | X91: Iara Simões Xavier
A92: 9470.315/25 | B92: 9470315 | C92: 2320.01.0007667/2025-80 | D92: Cetus Construtora Ltda. | E92: Serviços comuns de engenharia (manutenção predial) Lote 04. | F92: Não | G92: Sim | H92: 2025-06-11 | I92: 2026-06-10 | J92: Sim | M92: 2030-06-10 | N92: 06 | O92: 2026 | P92: =Tabela1[[#This Row],[VALOR ANUAL]]/12 -> 81748.6375 | Q92: 980983.65 | R92: 980983.65 | S92: I.GIF.MPR | U92: Douglas Augusto Rodrigues Pereira | V92: Neylor Assunção Mesquit | W92: Júlia Carolina Soares | X92: Victor Adler Oliveira
A93: 9402.584/23 | B93: 9402584 | C93: 2320.01.0016919/2023-57 | D93: Claro S/A | E93: contratação de serviço de telefonia fixa comutada - Link E1 - Regiões 01, 03, 06 e 09, local, fixo-fixo, fixo móvel, DDR, instalação ou transferência, e serviço de telefonia fixa comutada - LDN (Longa Distância Nacional, fixo-fixo, fixo móvel, lotes 01, 03, 06, 09 e 14 | F93: Não | H93: 2023-12-27 | I93: 2024-02-26 | J93: Sim | K93: 2025-12-27 | L93: 2026-12-26 | M93: 2028-12-26 | N93: 12 | O93: 2026 | P93: =R93/12 -> 9343.113333 | Q93: 112117.36 | R93: 112117.36 | S93: I.GTC.ITS | U93: Daniel Eustáquio Coutinho | V93: Fabrine Juliana Fabricio Costa | W93: Kathryna Fontana Rodrigues | X93: Iara Simões Xavier
A94: 9459.845/25 | B94: 9459845 | C94: 2320.01.0014885/2025-67 | D94: Claro S/A | E94: Contratação de serviços de telecomunicações necessários à implantação, operação, manutenção e gerenciamento de Rede IP Multiserviços, de serviços de valor adicionado e de serviço de trânsito e acesso à internet, além de fornecimento de informações para a administração pública (lote 01), visando atender os Órgãos e Entidades Anuentes. | F94: Não | G94: Sim | H94: 2025-05-19 | I94: 2030-05-18 | J94: Sim | M94: 2035-05-18 | N94: 05 | O94: 2030 | P94: 56505.08 | Q94: 678060.96 | R94: 3390304.8 | S94: I.GTC.ITS | U94: Daniel Eustáquio Coutinho | V94: Fabrine Juliana Fabricio Costa / Emanuel Camilo de Oliveira | W94: Iara Simões Xavier | X94: Marcela Soares Ferreira
A95: 9478.744/25 | B95: 9478744 | C95: 2320.01.0013151/2025-34 | D95: CMS Científica do Brasil Ltda. | E95: Aquisição de insumos para limpeza de sala limpa ou ambiente controlado ISSO 5 e 7, Lote 01. | F95: Não | H95: 2025-09-19 | I95: 2026-09-18 | J95: Sim | M95: 2035-09-18 | N95: 09 | O95: 2026 | P95: =Tabela1[[#This Row],[VALOR ANUAL]]/12 -> 5000 | Q95: 60000 | R95: 60000 | S95: CETEBIO | U95: Maria Lúcia Soares de Moura | V95: Jucélia Schittini da Silva Morais | W95: Júlia Carolina Soares | X95: Victor Adler Oliveira
A96: 9344.153/22 | B96: 9344153 | C96: 2320.01.0001510/2022-70 | D96: Companhia de Saneamento de Minas Gerais - COPASA MG | E96: Prestação de serviço de Recebimento e Tratamento dos efluentes líquidos domésticos e não domésticos - Programa Precend - Copasa MG (Alameda Ezequiel Dias, 321, Bairro Santa Efigênia, Belo Horizonte/MG). | F96: Não | H96: 2022-08-23 | I96: 2027-08-22 | J96: Sim | M96: 2032-08-22 | N96: 08 | O96: 2027 | P96: 105.55 | Q96: 1266.6 | R96: 1266.6 | S96: HBH.A.MPR | U96: Douglas Augusto Rodrigues Pereira | V96: Jéssica Rodrigues Barbosa | W96: Victor Adler Oliveira | X96: Júlia Carolina Soares
A97: 9488.034/25 | B97: 9488034 | C97: 2320.01.0006027/2025-31 | D97: Concrete Engenharia e Serviços Ltda. | E97: Prestação de seviços de engenharia/arrquitetura para realizar reforma do prédio do Hemocentro de Uberlândia. | F97: Não | H97: 2025-12-10 | I97: 2026-12-09 | J97: Não | M97: 2026-12-09 | N97: 12 | O97: 2026 | P97: =Tabela1[[#This Row],[VALOR TOTAL]]/12 -> 37625.31167 | Q97: 451503.74 | R97: 451503.74 | S97: I.GIF.AQE | U97: Silvana Rodrigues dos Santos Rocha | V97: Luciano Magalhães Chaves | W97: Kathryna Fontana Rodrigues | X97: Iara Simões Xavier
A98: 9346.082/22 | B98: 9346082 | C98: 2320.01.0005915/2022-57 | D98: Consórcio Empreendedor Shopping Estação BH | E98: Locação de imóvel, sala SEB4002B, do Shopping Estação BH, situado na Av. Cristiano Machado, 11.833, Vila Clóris, Belo Horizonte/MG. | F98: Não | H98: 2022-11-15 | I98: 2027-11-14 | J98: Não | M98: 2027-11-14 | N98: 11 | O98: 2027 | P98: =R98/12 -> 336390.74 | Q98: 808253.23 | R98: 4036688.88 | S98: GAD.HBH / HBH.GTE | U98: Paula Maria Leão Mendes Roenick | V98: Laiz Helena Brasil Marzano | W98: Kathryna Fontana Rodrigues | X98: Iara Simões Xavier
A99: 9452.416/25 | B99: 9452416 | C99: 2320.01.0014277/2023-96 | D99: Construir Engenharia Ltda. | E99: Prestação de serviços de reforma do prédio da Fundação Hemominas situado na Avenida Brasil, em Belo Horizonte/MG. | F99: Não | H99: 2025-02-26 | I99: 2026-02-25 | J99: Não | K99: 2026-02-26 | L99: 2026-06-25 | M99: 2026-06-25 | N99: 06 | O99: 2026 | Q99: 0 | R99: 1295089.38 | S99: I.GIF.AQE | U99: Silvana Rodrigues dos Santos Rocha | V99: Eline Magalhães Leite | W99: Victor Adler Oliveira | X99: Júlia Carolina Soares
A100: 9460.420/25 | B100: 9460420 | C100: 2320.01.0010012/2024-12 | D100: Contagem I Incorporação SPE Ltda. | E100: Locação do imóvel situado à Rua Simão Antônio, n° 149 - Bairro Cincão, Contagem-MG, CEP 32371-620 - Log Contagem I. Número de registro so imóvel 113138. | F100: Não | H100: 2025-04-01 | I100: 2026-03-31 | J100: Sim | K100: 2026-04-01 | L100: 2027-03-31 | M100: 2035-03-31 | N100: 03 | O100: 2027 | P100: 111718.46 | Q100: 1340621.52 | R100: 1340621.52 | S100: G.GLQ.PTM | U100: Vagner Luiz da Silva | V100: Moisés Patrocínio da Silva | W100: Victor Adler Oliveira | X100: Júlia Carolina Soares
A101: 9445.122/24 | B101: 9445122 | C101: 2320.01.0012813/2022-51 | D101: Contego Consultoria Ltda | E101: Prestação de Serviço técnico especializado, consultoria e assessoria para adequação, implantação e manutenção da conformidade da Fundação Hemominas (Hemorrede e Administração Central), frente aos requisitos da Lei Geral de Proteção de Dados - LGPD, Lei 13.079 de 14 de agosto de 2018 e alterações posteriores, a ser realizado pela contratada, consistindo na elaboração, desenvolvimento, execução, implementação e implantação do projeto/programa de adequação e conformidade à LGPD, com vistas à criação do programa de governança em privacidade e proteção de dados. | F101: Não | H101: 2024-12-04 | I101: 2026-08-03 | J101: Sim | M101: 2029-12-03 | N101: 08 | O101: 2026 | Q101: 0 | R101: 143000 | S101: PRE.LGPD | U101: Kátia Cardoso Coelho | V101: Maressa Motta Teixeira | W101: Victor Adler Oliveira | X101: Júlia Carolina Soares
A102: 9292.254/21 | B102: 9292254 | C102: 2320.01.0009164/2021-25 | D102: Control Lab Controle de Qualidade Para Laboratórios Ltda. | E102: Prestação de Serviços para fornecimento de programa de controle externo da qualidade (testes de proficiência) em hemocomponentes | F102: Não | H102: 2021-10-09 | I102: 2022-10-08 | J102: Sim | K102: 2025-10-09 | L102: 2026-10-08 | M102: 2026-10-08 | N102: 10 | O102: 2026 | P102: 6221.18 | Q102: 74654.16 | R102: 373270.8 | S102: T.GCQ | U102: Roberto Mauro Ferreira Silva | V102: Gabriela Coelho de Rezende | W102: Iara Simões Xavier | X102: Marcela Soares Ferreira
A103: 9391.558/23 | B103: 9391558 | C103: 2320.01.0006266/2023-83 | D103: Control Lab Controle de Qualidade Para Laboratórios Ltda. | E103: Aquisição de kit para Citômetro de Fluxo. | F103: Não | H103: 2023-08-31 | I103: 2024-08-30 | J103: Sim | K103: 2025-08-31 | L103: 2026-08-30 | M103: 2028-08-30 | N103: 08 | O103: 2026 | P103: - | R103: 29617.32 | S103: CETEBIO | U103: Maria Lúcia Soares de Moura | V103: Thiago Jocides Arruda Batista | W103: Victor Adler Oliveira | X103: Júlia Carolina Soares
A104: 9410.114/24 | B104: 9410114 | C104: 2320.01.0013723/2023-19 | D104: Control Lab Controle de Qualidade Para Laboratórios Ltda. | E104: Prestação de serviços de Programa de Controle Externo de Qualidade, lotes 4, 5 e 6. | F104: Não | H104: 2024-02-16 | I104: 2023-02-15 | J104: Sim | K104: 2026-02-16 | L104: 2027-02-15 | M104: 2029-02-15 | N104: 02 | O104: 2027 | P104: =R104/12 -> 831.78 | Q104: 9981.36 | R104: 9981.36 | S104: T.GLA / T.GLA.HLA | U104: Fernando Valadares Basques | V104: Beatriz Nogueira de Carvalho | W104: Kathryna Fontana Rodrigues | X104: Iara Simões Xavier
A105: 9450.578/25 | B105: 9450578 | C105: 2320.01.0001974/2024-49 | D105: Control Lab Controle de Qualidade Para Laboratórios Ltda. | E105: Prestação de serviços de ensaio e proficiência para controle externo. | F105: Não | H105: 2025-03-25 | I105: 2026-03-24 | J105: Sim | K105: 2026-03-25 | L105: 2027-03-24 | M105: 2035-03-24 | N105: 03 | O105: 2027 | Q105: 0 | R105: 105888.79 | S105: T.GLA | U105: Fernando Valadares Basques | V105: Milena Batista de Oliveira | W105: Victor Adler Oliveira | X105: Júlia Carolina Soares
A106: 9289.870/21 | B106: 9289870 | C106: 2320.01.0004323/2021-73 | D106: Controle Analítico Análises Técnicas Ltda | E106: Prestação de serviço de análise e monitoramento da qualidade da água de uso reagente usada nos diversos procedimentos e equipamentos dos laboratórios localizados no Hemocentro de Belo Horizonte (HBH) e CETEBIO. | F106: Não | H106: 2021-08-31 | I106: 2022-08-30 | J106: Sim | K106: 2025-08-31 | L106: 2026-08-30 | M106: 2026-08-30 | N106: 08 | O106: 2026 | P106: =Tabela1[[#This Row],[VALOR ANUAL]]/12 -> 6802.95 | Q106: 81635.4 | R106: 81635.4 | S106: DGI.ENC | U106: Felipe Garabini Antunes | V106: Eduardo da Silva Oliveira | W106: Júlia Carolina Soares | X106: Victor Adler Oliveira
A107: 9481.159/25 | B107: 9481159 | C107: 2320.01.0009365/2024-21 | D107: Cristina Panificações Ltda. | E107: Prestação de serviços de lanches para o doador de sangue de Patos de Minas. | F107: Não | H107: 2025-10-22 | I107: 2026-10-21 | J107: Sim | M107: 2035-10-21 | N107: 10 | O107: 2026 | P107: 10332.5 | Q107: 123990 | R107: 123990 | S107: PMI.GAD | U107: Nilza Canêdo de Magalhães | V107: Heleno de Lima Marques | W107: Victor Adler Oliveira | X107: Júlia Carolina Soares
A108: 9478.849/25 | B108: 9478849 | C108: 2320.01.0010109/2025-09 | D108: Crossing Comércio e Serviços de Tecnologia Ltda | E108: Compra de solução de videoconferência para salas médias (entre 6 e 12 pessoas). | F108: Não | H108: 2025-09-18 | I108: 2026-09-17 | J108: Não | M108: 2026-09-17 | N108: 09 | O108: 2026 | Q108: 247250 | R108: 247250 | S108: I.GTC | U108: Daniel Eustáquio Coutinho | V108: Izadalvo Ricardo de Oliveira | W108: Kathryna Fontana Rodrigues | X108: Iara Simões Xavier
A109: 9436.710/24 | B109: 943671 | C109: 2320.01.0015829/2023-96 | D109: CS BRASIL FROTAS S.A | E109: contratação de serviços de Locação de veículos automotores novos para transporte de pessoas e pequenas cargas, sem condutor, sem fornecimento de combustível, com quilometragem livre, com seguro total sem franquia, e com manutenção preventiva e corretiva, em atendimento às demandas dos órgãos e entidades do Poder Executivo do Estado de Minas Gerais e suas unidades, em todo território estadual, para a prestação de serviços públicos permanentes ou de longa duração. | F109: Não | H109: 2024-08-24 | I109: 2027-08-23 | J109: Sim | K109: - | M109: 2029-08-23 | N109: 08 | O109: 2027 | P109: =Tabela1[[#This Row],[VALOR ANUAL]]/12 -> 88358.255 | Q109: =Tabela1[[#This Row],[VALOR TOTAL]]/5 -> 1060299.06 | R109: 5301495.3 | S109: G.GLQ.PRT.TRANSPORTE | U109: Pablo Ruas dos Santos | V109: Anastas Falcão Quirino Chaves | W109: Júlia Carolina Soares | X109: Victor Adler Oliveira
A110: 9484.285/25 | B110: 9484285 | C110: 2320.01.0016379/2025-81 | D110: D Gusto Pães e Rotisseria Ltda ME | E110: Fornecimento de gêneros alimentícios para o doador de sangue de Uberândia (Lotes 03 e 04). | F110: Não | H110: 2025-11-21 | I110: 2026-11-20 | J110: Não | M110: 2026-11-20 | N110: 11 | O110: 2026 | Q110: 42085 | R110: 42085 | S110: UDI.GAD | U110: Patrícia Santos de Almeida Fernandes | V110: Márcia Regina Luis | W110: Kathryna Fontana Rodrigues | X110: Iara Simões Xavier
A111: 9346.666/22 | B111: 9346666 | C111: 2320.01.0007924/2022-37 | D111: D.I. Comércio de Peças e Serviços para Geradores Eireli - ME | E111: Prestação de serviço de manutenção preventiva e corretiva em grupo moto gerador, com fornecimento de peças. | F111: Não | H111: 2022-11-26 | I111: 2023-11-25 | J111: Sim | K111: 2025-11-26 | L111: 2026-11-25 | M111: 2027-11-25 | N111: 11 | O111: 2026 | P111: =R111/12 -> 19657.66333 | Q111: 235891.92 | R111: 235891.96 | S111: DGI.ENC | U111: Wesley Rodrigues Tomaz | V111: Thiago Euzébio dos Santos | W111: Victor Adler Oliveira | X111: Júlia Carolina Soares
A112: 9430.232/24 | B112: 9430232 | C112: 2320.01.0010097/2023-48 | D112: D.I. COMÉRCIO DE PEÇAS E SERVIÇOS PARA GERADORES EIRELI - ME. | E112: Prestação de Serviço de locação de equipamentos de geração e distribuição de energia. | F112: Não | H112: 2024-06-25 | I112: 2028-06-24 | J112: Sim | M112: 2034-06-24 | N112: 06 | O112: 2028 | P112: =R112/48 -> 4199.99 | Q112: 50399.88 | R112: 201599.52 | S112: DGI.ENC | U112: Renata Samantha Martins Blasco | V112: Adilson Meireles Pacheco | W112: Victor Adler Oliveira | X112: Júlia Carolina Soares
A113: 9454.453/25 | B113: 9454453 | C113: 2320.01.0003856/2025-60 | D113: Danilo Aparecido Borela EPP | E113: Aquisição de nitrogênio líquido (Lote 01). | F113: Não | H113: 2025-03-13 | I113: 2026-03-12 | J113: Sim | K113: 2026-03-13 | L113: 2027-03-12 | M113: 2035-03-12 | N113: 03 | O113: 2027 | P113: 1015.7 | Q113: 12188.4 | R113: 121884 | S113: T.GLA.CIH | U113: Luciana Cayres Schmidt | V113: Fabrizzio de Oliveira Dias | W113: Iara Simões Xavier | X113: Marcela Soares Ferreira
A114: 9437.724/24 | B114: 9437724 | C114: 2320.01.0005968/2024-75 | D114: Datacop Serviços de Digitalização e Gestão da Informação Ltda. | E114: Prestação de Serviço de digitalização, indexação, visualização e gerenciamento de documentos digitais. | F114: Não | H114: 2024-09-23 | I114: 2025-09-22 | J114: Sim | K114: 2025-09-23 | L114: 2026-09-22 | M114: 2029-09-22 | N114: 09 | O114: 2026 | P114: =Tabela1[[#This Row],[VALOR TOTAL]]/12 -> 1565.823333 | Q114: 18789.88 | R114: 18789.88 | S114: T.GLA.CIH | U114: Luciana Cayres Schmidt | V114: Felipe Carlos Brito de Souza | W114: Kathryna Fontana Rodrigues | X114: Iara Simões Xavier
A115: 9346.205/22 | B115: 9346205 | C115: 2320.01.0006344/2022-17 | D115: Datafilme Sistemas de Imagem e Informação - Eireli | E115: Prestação de serviço de coleta, transporte, indexação, armazenagem, conservação, movimentação e gerenciamento informatizado de caixas-arquivo, contendo documentos, e de mídias micrografias originais obedecendo às normas de segurança e preservação. | F115: Não | H115: 2022-11-08 | I115: 2023-11-07 | J115: Sim | K115: 2025-11-08 | L115: 2026-11-07 | M115: 2027-11-07 | N115: 11 | O115: 2026 | P115: =R115/12 -> 14763.98 | Q115: 177167.76 | R115: 177167.76 | S115: G.GPO.NAC | U115: Maria Isabel Castilho Campos | V115: Valéria Christina Pinto da Silva Penna | W115: Kathryna Fontana Rodrigues | X115: Iara Simões Xavier
A116: 9442.236/24 | B116: 9442236 | C116: 2320.01.0000765/2024-03 | D116: Datamed Ltda. | E116: Prestação de serviço de manutenção em centrífugas refrigeradas. | F116: Não | H116: 20/11/2024 | I116: 2025-11-19 | J116: Sim | K116: 2025-11-20 | L116: 2026-11-19 | M116: 2034-11-19 | N116: 11 | O116: 2026 | P116: =Tabela1[[#This Row],[VALOR ANUAL]]/12 -> 117578.9658 | Q116: 1410947.59 | R116: 1410947.59 | S116: DGI.ENC | U116: Marcelo Furtado dos Santos | V116: Felipe Garabini Antunes | W116: Júlia Carolina Soares | X116: Victor Adler Oliveira
A117: 9476.440/25 | B117: 9476440 | C117: 2320.01.0012229/2025-96 | D117: David de Paula Martins | E117: Contratação de serviços de manutenção, reforma, reparo e adaptação em móveis e acessórios hospitalares (Lote 05). | F117: Não | H117: 2025-08-29 | I117: 2026-08-28 | J117: Sim | M117: 2035-08-28 | N117: 08 | O117: 2026 | P117: =Tabela1[[#This Row],[VALOR TOTAL]]/12 -> 7751.333333 | Q117: 93016 | R117: 93016 | S117: DGI.ENC | U117: Felipe Garabini Antunes | V117: Eduardo da Silva Oliveira | W117: Kathryna Fontana Rodrigues | X117: Iara Simões Xavier
A118: 9486.894/25 | B118: 9486894 | C118: 2320.01.0010100/2025-58 | D118: DCA Manutenção de Elevadores Ltda. - ME | E118: Prestação de serviços de manutenção preventiva e corretiva em elevador do Hemocentro Regional de Montes Claros. | F118: Não | H118: 2025-12-09 | I118: 2026-12-08 | J118: Sim | M118: 2035-12-08 | N118: 12 | O118: 2026 | P118: =Tabela1[[#This Row],[VALOR ANUAL]]/12 -> 2871.166667 | Q118: 34454 | R118: 34454 | S118: MOC.GAD | U118: Daniel Nascimento Salgado | V118: Emanuelle Aparecida Bruzinga Machado | W118: Júlia Carolina Soares | X118: Victor Adler Oliveira
A119: 9489.279/25 | B119: 9489279 | C119: 2320.01.0017583/2025-68 | D119: DCB Distribuidora Cirúrgica Ltda. | E119: Aquisição de insumos médicos hospitalares (Lote 05). | F119: Não | H119: 2025-12-16 | I119: 2026-12-15 | J119: Sim | M119: 2035-12-15 | N119: 12 | O119: 2026 | P119: 1604.17 | Q119: 19250 | R119: 192500.4 | S119: G.GLQ.ADM | U119: Mônica Vieira Gomes | V119: Nilda Maria Campos Lucena | W119: Iara Simões Xavier | X119: Marcela Soares Ferreira
A120: 9483.937/25 | B120: 9483937 | C120: 2320.01.0016259/2025-23 | D120: Dedetizadora Itabirito Ltda. | E120: Prestação de serviços de desinsetização e desratização (Lotes 02, 03, 10, 13 e 15). | F120: Não | H120: 2025-11-18 | I120: 2026-11-17 | J120: Sim | M120: 2035-11-17 | N120: 11 | O120: 2026 | P120: 332.83 | Q120: 3993.96 | R120: 39939.6 | S120: DGI.NZL | U120: Marcelo de Aguiar Gomes | V120: Alessandra Cristina Menezes Frattezi Santos Nilba Valéria Pinheiro de Oliveira João dos Reis Pagliuso Marcelo Fabri Leandro Adauto Rocha dos Santos | W120: Iara Simões Xavier | X120: Marcela Soares Ferreira
A121: 9389.383/23 | B121: 9389383 | C121: 2320.01.0003371/2023-66 | D121: Dhuan Comissária de Despachos Aduaneiros Ltda. | E121: Prestação de serviço de Logística Internacional, despachos aduaneiros e desembaraços alfandegários. | F121: Não | H121: 2023-06-27 | I121: 2024-06-26 | J121: Sim | K121: 2025-06-27 | L121: 2026-06-26 | M121: 2027-06-26 | N121: 06 | O121: 2026 | P121: 10872.2 | Q121: 130466.36 | R121: 130466.36 | S121: G.GLQ | U121: Gisele de Fátima Melo | V121: Jefferson Ferreira Sardinha Ribeiro | W121: Victor Adler Oliveira | X121: Júlia Carolina Soares
A122: 9401.406/23 | B122: 9401406 | C122: 2320.01.0010255/2023-50 | D122: Dhuan Comissária de Despachos Aduaneiros Ltda. | E122: Prestação de serviços de logística, despachos aduaneiros e desembaraços alfandegários. | F122: Não | H122: 2023-12-01 | I122: 2024-11-30 | J122: Sim | K122: 2025-12-01 | L122: 2026-11-30 | M122: 2028-11-30 | N122: 11 | O122: 2026 | P122: =R122/12 -> 26307.09667 | Q122: 315685.16 | R122: 315685.16 | S122: G.GLQ | U122: Andreza Santos Faria | V122: Adriana Jussara Lima Rocha | W122: Kathryna Fontana Rodrigues | X122: Iara Simões Xavier
A123: 9453.451/25 | B123: 9453451 | C123: 2320.01.0009879/2024-14 | D123: DINÂMICA DISTRIBUIÇÃO LTDA EPP. | E123: Aquisição de dispositivos de infusão e agulha múltipla para coleta a vácuo. | F123: Não | H123: 2025-03-20 | I123: 2026-03-19 | J123: Sim | K123: 2026-03-20 | L123: 2027-03-19 | M123: 2035-03-19 | N123: 03 | O123: 2027 | P123: 1080 | Q123: 12960 | R123: 129600 | S123: G.GLQ.ADM / HBH.T.LHEM | U123: Mônica Vieira Gomes | W123: Iara Simões Xavier | X123: Marcela Soares Ferreira
A124: 9459.067/25 | B124: 9459067 | C124: 2320.01.0005163/2025-79 | D124: DINÂMICA DISTRIBUIÇÃO LTDA EPP. | E124: Aquisição de tubos e ponteiras (Lotes 02 e 04). | F124: Não | H124: 2025-04-04 | I124: 2026-04-03 | J124: Sim | K124: 2026-04-04 | L124: 2027-04-03 | M124: 2035-04-03 | N124: 04 | O124: 2027 | P124: 515.25 | Q124: 6183 | R124: 6183 | S124: T.GLA | U124: João Paulo dos Santos Barbosa | V124: Nilda Maria Campos Lucena | W124: Júlia Carolina Soares | X124: Victor Adler Oliveira
A125: 9471.774/25 | B125: 9471774 | C125: 2320.01.0004586/2024-44 | D125: Dinâmica Distribuição Ltda. | E125: Aquisição de insumos plásticos necessários à tipificação HLA (média/alta resolução), prova cruzada (XM-CDC) e painel de reatividade de anticorpos (PRA) de amostras de doadores e receptodres de médula óssea e órgãos sólidos. | F125: Não | H125: 2025-07-11 | I125: 2026-07-10 | J125: Não | M125: 2026-07-10 | N125: 07 | O125: 2026 | P125: =Tabela1[[#This Row],[VALOR TOTAL]]/12 -> 3925.008333 | Q125: 47100.1 | R125: 47100.1 | S125: T.GLA.HLA | U125: Milena Batista de Oliveira | V125: Luciana Lara Viegas da Aparecida | W125: Kathryna Fontana Rodrigues | X125: Iara Simões Xavier
A126: 9470.126/25 | B126: 9470126 | C126: 2320.01.0001823/2025-49 | D126: Distribuidora de Águas Minerais BH Ltda. | E126: Aquisição de água mineral em garrafão retornável, com bebedouro refrigerado em comodato. | F126: Sim | H126: 2025-06-06 | I126: 2026-06-05 | J126: Sim | M126: 2035-06-05 | N126: 06 | O126: 2026 | P126: =Tabela1[[#This Row],[VALOR TOTAL]]/12 -> 12658.75 | Q126: 151905 | R126: 151905 | S126: DGI.NZL | U126: Marcelo de Aguiar Gomes | V126: Nilza de Melo Pereira | W126: Kathryna Fontana Rodrigues | X126: Iara Simões Xavier
A127: 9392.808/23 | B127: 9392808 | C127: 2320.01.0012183/2023-83 | D127: Distribuidora Mendonça e Miranda Ltda. | E127: Aquisição de Insumos e reagentes necessário para tipificação HLA (média/alta resolução) de amostras de Doadores e Receptores de Medula Óssea (lote 01). | F127: Não | H127: 2023-08-25 | I127: 2024-08-24 | J127: Sim | K127: 2025-08-25 | L127: 2026-08-24 | M127: 2028-08-24 | N127: 08 | O127: 2026 | P127: - | R127: 16065.5 | S127: T.GLA.HLA | U127: Felipe Carlos Brito de Souza | V127: Luciana Lara Viegas da Aparecida | W127: Júlia Carolina Soares | X127: Victor Adler Oliveira
A128: 9470.489/25 | B128: 9470489 | C128: 2320.01.0008805/2025-06 | D128: Distribuidora Mendonça e Miranda Ltda. | E128: Aquisição de tubos para coleta de sangue a vácuo, tubos de vidro para laboratório e tampa uso laboratório (lote 04). | F128: Nã0 | H128: 2025-06-16 | I128: 2026-06-15 | J128: Sim | M128: 2035-06-15 | N128: 06 | O128: 2026 | P128: 8883 | Q128: 106596 | R128: 106596 | S128: T.GLA | U128: João Paulo dos Santos Barbosa | W128: Victor Adler Oliveira | X128: Júlia Carolina Soares
A129: 9481.461/25 | B129: 9481461 | C129: 2320.01.0001175/2025-85 | D129: Distribuidora Mendonça e Miranda Ltda. | E129: Aquisição de tampa uso laboratório (Lote 02). | F129: Não | H129: 2025-10-29 | I129: 2026-10-28 | J129: Sim | M129: 2035-10-28 | N129: 10 | O129: 2026 | P129: =Tabela1[[#This Row],[VALOR ANUAL]]/12 -> 1199.466667 | Q129: 14393.6 | R129: 14393.6 | S129: G.GLQ.ADM / T.GLA | U129: João Paulo dos Santos Barbosa | V129: Nilda Maria Campos Lucena | W129: Júlia Carolina Soares | X129: Victor Adler Oliveira
A130: 9482.020/25 | B130: 9482020 | C130: 2320.01.0015891/2025-65 | D130: Distribuidora Mendonça e Miranda Ltda. | E130: Aquisição de reagentes para testes imunohematológicos (Lotes 02 e 05). | F130: Não | H130: 2025-11-07 | I130: 2026-11-06 | J130: Sim | M130: 2035-11-06 | N130: 11 | O130: 2026 | Q130: 0 | R130: 30072 | S130: T.GLA.CIH | U130: Luciana Cayres Schmidt | V130: Ariane Ribeiro da Silva | W130: Júlia Carolina Soares | X130: Victor Adler Oliveira
A131: 9481.854/25 | B131: 9481854 | C131: 2320.01.0008907/2025-65 | D131: Distribuidora Mendonça e Miranda Ltda. | E131: Aquisição de lanceta descartável. | F131: Não | H131: 2025-11-07 | I131: 2026-11-06 | J131: Sim | M131: 2035-11-06 | N131: 11 | O131: 2026 | P131: 4696.36 | Q131: 56356.3 | R131: 56356.3 | S131: G.GLQ.ADM | U131: Mônica Vieira Gomes | V131: Ronaldo Machado Silva | W131: Victor Adler Oliveira | X131: Júlia Carolina Soares
A132: 9505.669/26 | B132: 9505669 | C132: 2320.01.0006948/20226-90 | D132: Distribuidora Mendonça e Miranda Ltda. | E132: Aquisição de insumos plásticos (lotes 03, 05 e 08). | F132: Não | H132: 2026-05-07 | I132: 2027-05-06 | J132: Não | M132: 2027-05-06 | N132: 05 | O132: 2027 | P132: 5583.33 | Q132: 66999.96 | R132: 66999.96 | S132: T.GLA.HLA | U132: Milena Batista de Oliveira | V132: Marleide Mendes Dias | W132: Júlia Carolina Soares | X132: Victor Adler Oliveira
A133: 9382.504/23 | B133: 9382504 | C133: 2320.01.0008859/2022-12 | D133: DRX Serviços Técnicos em Computadores, Máquinas e Equipamentos Ltda - ME | E133: Prestação de serviços de manutenção preventiva semestral e corretiva ilimitada, incluindo todo e qualquer tipo de mão de obra, com fornecimento de peças, necessários ao perfeito funcionamento e conservação em 02 (dois) Citômetros de Fluxo BD modelo FacsCalibur, instalados no prédio do CETEBIO. | F133: Não | H133: 2023-04-18 | I133: 2024-04-17 | J133: Sim | K133: 2026-04-18 | L133: 2027-04-17 | M133: 2028-04-17 | N133: 04 | O133: 2027 | P133: =R133/12 -> 34853.28667 | Q133: 418239.44 | R133: 418239.44 | S133: CETEBIO DGI.ENC | U133: Antônio Ferreira de Oliveira Filho | V133: Maria Lúcia Soares de Moura | W133: Kathryna Fontana Rodrigues | X133: Iara Simões Xavier
A134: 9478.828/25 | B134: 9478828 | C134: 2320.01.0013228/2025-89 | D134: Eco Plast Comércio Ltda. | E134: Aquisição de insumos para limpeza de sala limpa ou ambiente controlado ISSO 5 e 7, Lote 03. | F134: Não | H134: 2025-09-19 | I134: 2026-09-18 | J134: Sim | M134: 2035-09-18 | N134: 09 | O134: 2026 | P134: 452.2 | Q134: 5426.4 | R134: 54264 | S134: CETEBIO | U134: Maria Lúcia Soares de Moura | V134: Jucélia Schittini da Silva Morais | W134: Iara Simões Xavier | X134: Marcela Soares Ferreira
A135: 9459.025/25 | B135: 9459025 | C135: 2320.01.0005209/2025-98 | D135: Eletrind Eletricidade Industrial Ltda. | E135: Instalação de sistema de proteção contra descargas atmosféricas (Lote 04). | F135: Não | H135: 2025-04-04 | I135: 2027-04-03 | J135: Não | M135: 2027-04-03 | N135: 04 | O135: 2027 | Q135: 0 | R135: 718421.06 | S135: I.GIF.AQE | U135: Luiz Carlos Moreira | V135: Jéssica Rodrigues Barbosa | W135: Júlia Carolina Soares | X135: Victor Adler Oliveira
A136: 9405.875/23 | B136: 9405875 | C136: 2320.01.0007535/2023-61 | D136: Elevadores Módulo - LTDA | E136: Prestação de Serviço de Serviços de manutenção de elevadores da Fundação Hemominas (lotes 01 e 02) | F136: Não | H136: 2023-12-22 | I136: 2024-12-21 | J136: Sim | K136: 2025-12-22 | L136: 2026-12-21 | M136: 2028-12-21 | N136: 12 | O136: 2026 | P136: =Tabela1[[#This Row],[VALOR TOTAL]]/12 -> 13045 | Q136: 156540 | R136: 156540 | S136: DGI.ENC HBH.A.MPR | U136: João Silvestre Guimarães | V136: Thiago Jocides Arruda Batista | W136: Kathryna Fontana Rodrigues | X136: Iara Simões Xavier
A137: 9274.028/21 | B137: 9274028 | C137: 2320.01.0016010/2020-68 | D137: Empresa Brasileira de Correios e Telégrafos | E137: Contratação de produtos e serviços por meio de Pacote de Serviços dos Correios. | F137: Não | H137: 2021-03-19 | I137: 2022-03-18 | J137: Sim | K137: 2025-03-19 | L137: 2026-03-18 | M137: 2026-03-18 | N137: 03 | O137: 2026 | P137: =Tabela1[[#This Row],[VALOR ANUAL]]/12 -> 76041.67 | Q137: 912500.04 | R137: 912500 | S137: G.GLQ.PRT. PROTOCOLO | W137: Júlia Carolina Soares | X137: Victor Adler Oliveira
A138: 9486.623/25 | B138: 9486623 | C138: 2320.01.0011734/2025-75 | D138: Energisa Minas Rio - Distribuidora de Energia S.A. | E138: Prestação de serviços de fornecimento de energia elétrica para o Hemonúcleo de Manhuaçu. | F138: Não | H138: 2025-12-03 | M138: INDETERMINADA | Q138: 131027.9 | R138: 131027.9 | S138: GAD.MÇU | U138: Maria José Moreira | V138: Gulliver Fabrício Vieira Rocha | W138: Kathryna Fontana Rodrigues | X138: Iara Simões Xavier
A139: 9470.211/25 | B139: 9470211 | C139: 2320.01.0008578/2025-24 | D139: Esfera Master Comercial Ltda | E139: Compra de equipamentos técnicos (lote 04). | F139: Não | H139: 2025-06-13 | I139: 2026-06-12 | J139: Não | M139: 2026-06-12 | N139: 06 | O139: 2026 | Q139: 41890 | R139: 41890 | S139: DGI.ENC.CAT | U139: Asaph Calazans Mendes de Souza | V139: Manoel Ricardo Caires Fernandes | W139: Kathryna Fontana Rodrigues | X139: Iara Simões Xavier
A140: 9342.132/22 | B140: 9342132 | C140: 2320.01.0002490/2022-91 | D140: Esmarty Especialista em Manutenção de Elevadores Ltda. | E140: Prestação de serviço de manutenção preventiva e corretiva em elevador e plataforma elevatória no Hemocentro Regional de Governador Valadares da Fundação Hemominas. | F140: Não | H140: 2022-07-01 | I140: 2023-06-30 | J140: Sim | K140: 2025-07-01 | L140: 2026-06-30 | M140: 2027-06-30 | N140: 06 | O140: 2026 | P140: 2708.59 | Q140: 32503.08 | R140: 162515.4 | S140: GOV.A.COM / GOV.A.MAT | U140: Deivandro Lessa | V140: Bruno Sousa Macedo | W140: Iara Simões Xavier | X140: Marcela Soares Ferreira
A141: 9440.192/24 | B141: 9440192 | C141: 2320.01.0004970/2024-55 | D141: Esmarty Especialista em Manutenção de Elevadores Ltda. | E141: Prestação de Serviço operação e manutenção corretiva e preventiva em elevador convencional, com fornecimento de peças, da Unidade CETEBIO - Hemominas. | F141: Não | H141: 2024-10-14 | I141: 2025-10-13 | J141: Sim | K141: 2025-10-14 | L141: 2026-10-13 | M141: 2034-10-13 | N141: 10 | O141: 2026 | Q141: 0 | R141: 76795.69 | S141: DGI.ENC | U141: João Silvestre Guimarães | V141: Maria Lúcia Soares de Moura | W141: Júlia Carolina Soares | X141: Victor Adler Oliveira
A142: 9478.223/25 | B142: 9478223 | C142: 2320.01.0017597/2024-81 | D142: Esmarty Especialista em Manutenção de Elevadores Ltda. | E142: Prestação de serviços de manutenção preventiva mensal e corretivas, incluindo toda e qualquer tipo de mão de obra, com fornecimento de peças, necessário ao perfeito funcionamento e conservação do elevador acessível da marca COBER instalado no Hemocentro Regional de Uberlândia. | F142: Não | H142: 2025-09-09 | I142: 2026-09-08 | J142: Sim | M142: 2035-09-08 | N142: 09 | O142: 2026 | P142: =Tabela1[[#This Row],[VALOR TOTAL]]/12 -> 1332.333333 | Q142: 15988 | R142: 15988 | S142: DGI.ENC | U142: Renata Léa Silva Souza | V142: Márcia Regina Luis | W142: Kathryna Fontana Rodrigues | X142: Iara Simões Xavier
A143: 9472.589/25 | B143: 9472589 | C143: 2320.01.0005930/2025-31 | D143: Expresso Batista Lopes Distribuidora Ltda | E143: Compra de água mineral | F143: Não | H143: 2025-07-25 | I143: 2026-07-24 | J143: Sim | M143: 2035-07-24 | N143: 07 | O143: 2026 | P143: =7030.4/12 -> 585.8666667 | Q143: 7030.4 | R143: 7030.4 | S143: SJR.GAD / SJR.A.COM | U143: Adauto Rocha dos Santos | V143: Tânia Mara da Silveira Santos | W143: Júlia Carolina Soares | X143: Victor Adler Oliveira
A144: 9317.724/21 | B144: 9317724 | C144: 2320.01.0013283/2021-71 | D144: Expresso Minas Frios Ltda | E144: Prestação de serviço de transporte rodoviário de carga entre as Unidades da Fundação Hemominas, incluindo frete e serviços de carga e descarga de materiais de consumo diversos, bens permanentes, equipamentos e medicamentos. | F144: Não | H144: 2021-12-24 | I144: 2022-12-23 | J144: Sim | K144: 2025-12-24 | L144: 2026-12-23 | M144: 2026-12-23 | N144: 12 | O144: 2026 | P144: =R144/12 -> 84635.59083 | Q144: 1015627.08 | R144: 1015627.09 | S144: G.GLQ.ALX | U144: Moisés Patrocínio da Silva | V144: Vagner Luiz da Silva | W144: Júlia Carolina Soares | X144: Victor Adler Oliveira
A145: 9508.309/26 | B145: 9508309 | C145: 2320.01.0007624/2026-74 | D145: Facetech Equipamentos Ltda. | E145: Serviço de instalação e configuração de equipamentos para solução integrada de controle de acesso e de ponto. | F145: Não | H145: 2026-05-25 | I145: 2026-11-24 | J145: Não | M145: 2026-11-24 | N145: 11 | O145: 2026 | P145: 5998 | Q145: 35988 | R145: 35988 | S145: DGI.ENC | U145: Wagner Felipe Patrício Maia | V145: Renatha Samantha Martins Blasco | W145: Victor Adler Oliveira | X145: Júlia Carolina Soares
A146: 9439.795/24 | B146: 9439795 | C146: 2320.01.0013243/2023-78 | D146: Felipe Alvarenga Comércio e Serviços de Engenharia Ltda. | E146: Prestação de serviços de manutenção preventiva, corretiva, com fornecimento de peças, e instalação de equipamentos de ar condicionado da Unidade de Coleta de Poços de Caldas, do Hemonúcleo de Passos e do Hemocentro Regional de Pouso Alegre da Fundação Hemominas. | F146: Não | H146: 2024-10-01 | I146: 2025-09-30 | J146: Sim | K146: 2025-10-01 | L146: 2026-09-30 | M146: 2034-09-30 | N146: 09 | O146: 2026 | P146: =Tabela1[[#This Row],[VALOR TOTAL]]/12 -> 14995.3075 | Q146: 179943.69 | R146: 179943.69 | S146: DGI.ENC | U146: Thiago Euzébio dos Santos | V146: João Silvestre Guimarães | W146: Kathryna Fontana Rodrigues | X146: Iara Simões Xavier
A147: 9468.714/25 | B147: 9468714 | C147: 2320.01.0015676/2024-53 | D147: F.F. Controle e Certificação Ltda. | E147: Prestação de serviços de certificação da sala limpa (sala de procedimentos e antecâmara) ISSO Classe 7 do Banco de Tecidos. | F147: Não | H147: 2025-06-03 | I147: 2026-06-02 | J147: Sim | M147: 2035-06-02 | N147: 06 | O147: 2026 | P147: 620.75 | Q147: 7449 | R147: 74490 | S147: DGI.ENC | U147: Antônio Ferreira de Oliveira Filho | V147: Maria Lúcia Soares de Moura | W147: Iara Simões Xavier | X147: Marcela Soares Ferreira
A148: 9503.552/26 | B148: 9503552 | C148: 2320.01.0010311/2025-84 | D148: FGF Comércio e Serviços de Esterilização em Óxido de Etileno Ltda | E148: Prestação de serviço de processamento esterilização e reesterilização de materiais médico-hospitalares do CETEBIO, sem dedicação exclusiva de mão de obra. | F148: Não | H148: 2026-04-25 | I148: 2027-04-24 | J148: Sim | M148: 2036-04-24 | N148: 04 | O148: 2027 | P148: 14471.45 | Q148: 173657.43 | R148: 173657.43 | S148: CETEBIO | U148: Diogo Vital Mota | V148: Maurício Colombini Martins | W148: Iara Simões Xavier | X148: Kathryna Fontana Rodrigues
A149: 9440.832/24 | B149: 9440832 | C149: 2320.01.0005452/2024-39 | D149: Fran Luy Padaria e Confeitaria Ltda. | E149: Aquisição de gêneros alimentícios para o Lanche Complementar do Doador (Lote 1) e Fornecimento de lanches preparados para o Lanche Capacitação Externa (Lote 2). | F149: Não | H149: 2024-10-25 | I149: 24/02/2025 (LOTE 01) 24/02/2025 (LOTE 02) | J149: Sim (Lote 01) Não (Lote 02) | K149: 2025-10-25 | L149: 2026-10-24 | M149: 24/10/2034 (Lote 01) 24/02/2025 (Lote 02) | N149: 10 | O149: 2026 | Q149: 0 | R149: 231814 | S149: JFO.GAD | U149: Valcilea Campos Damasceno | V149: André Meireles Fontes | W149: Júlia Carolina Soares | X149: Victor Adler Oliveira
A150: 9291.832/21 | B150: 9291832 | C150: 2320.01.0015039/2020-95 | D150: Fresenius Hemocare Brasil Ltda. | E150: Aquisição de bolsas de sangue. | F150: Não | H150: 2021-09-22 | I150: 2022-09-21 | J150: Sim | K150: 2025-09-22 | L150: 2026-09-21 | M150: 2026-09-21 | N150: 09 | O150: 2026 | P150: =Tabela1[[#This Row],[VALOR TOTAL]]/12 -> 2003316.25 | Q150: 24039795 | R150: 24039795 | S150: T.GCQ | U150: Adilson Meireles Pacheco | V150: Felipe Garabini Antunes | W150: Kathryna Fontana Rodrigues | X150: Iara Simões Xavier
A151: 9437.075/24 | B151: 9437075 | C151: 2320.01.0011827/2024-89 | D151: Fresenius Hemocare Brasil Ltda. | E151: Aquisição de bolsa de transferência quádrupla pediátrica com com volume maior ou igual a 150 ml (Lote 01 | F151: Não | H151: 2024-08-30 | I151: 2027-08-29 | J151: Sim | M151: 2030-08-29 | N151: 08 | O151: 2027 | P151: =Tabela1[[#This Row],[VALOR ANUAL]]/12 -> 14550 | Q151: =Tabela1[[#This Row],[VALOR TOTAL]]/3 -> 174600 | R151: 523800 | S151: T.GLA.CIH | U151: Ana Paula de Morais | V151: Roberto Mauro Ferreira Silva | W151: Júlia Carolina Soares | X151: Victor Adler Oliveira
A152: 9454.469/25 | B152: 9454469 | C152: 2320.01.0003869/2025-97 | D152: Fresenius Hemocare Brasil Ltda. | E152: Aquisição de reagentes para testes imunohematológicos (Lote 04). | F152: Não | H152: 2025-03-11 | I152: 2026-03-10 | J152: Sim | K152: 2026-03-11 | L152: 2027-03-10 | M152: 2035-03-10 | N152: 03 | O152: 2027 | P152: 5466.79 | Q152: 65601.43 | R152: 65601.43 | S152: T.GLA.CIH | U152: Luciana Cayres Schmidt | V152: Fabrizzio de Oliveira Dias | W152: Victor Adler Oliveira | X152: Júlia Carolina Soares
A153: 9470.546/25 | B153: 9470546 | C153: 2320.01.0008855/2025-14 | D153: Fresenius Hemocare Brasil Ltda. | E153: Compra de equipamentos técnicos (lote 02). | F153: Não | H153: 2025-06-20 | I153: 2026-06-19 | J153: Não | M153: 2026-06-19 | N153: 06 | O153: 2026 | Q153: 131700 | R153: 131700 | S153: DGI.ENC.CAT | U153: Asaph Calazans Mendes de Souza | V153: Manoel Ricardo Caires Fernandes | W153: Kathryna Fontana Rodrigues | X153: Iara Simões Xavier
A154: 9472.931/25 | B154: 9472931 | C154: 2320.01.0002885/2025-87 | D154: Fresenius Hemocare Brasil Ltda. | E154: Compra de solução aditiva para plaquetas | F154: Não | H154: 2025-07-28 | I154: 2026-07-27 | J154: Sim | M154: 2035-07-27 | N154: 07 | O154: 2026 | P154: 124645.83 | Q154: 1495749.96 | R154: 14957499.6 | S154: T.GCQ | U154: Roberto Mauro Ferrreira Silva | V154: Gabriela Coelho de Rezende | W154: Iara Simões Xavier | X154: Marcela Soares Ferreira
A155: 9480.390/25 | B155: 9480390 | C155: 2320.01.0011983/2025-45 | D155: Fresenius Hemocare Brasil Ltda. | E155: Locação de equipamentos de hemoterapia, com prestação de serviços de manutenção, preventiva, corretiva e calibração (Lote 01 e Lote 02). | F155: Não | H155: 2025-10-09 | I155: 2026-10-08 | J155: Não | M155: 2026-10-08 | N155: 10 | O155: 2026 | P155: =Tabela1[[#This Row],[VALOR TOTAL]]/12 -> 327573.65 | Q155: 3930883.8 | R155: 3930883.8 | S155: DGI.ENC | U155: Izabela Batista Neiva | V155: Adilson Meireles Pacheco | W155: Kathryna Fontana Rodrigues | X155: Iara Simões Xavier
A156: 9480.937/25 | B156: 9480937 | C156: 2320.01.0013158/2025-39 | D156: Fresenius Hemocare Brasil Ltda. | E156: Compra de reagente para realiação de testes imunohematológicos para triagem de doadores. | F156: Não | H156: 2025-10-18 | I156: 2026-06-17 | J156: Sim | M156: 2026-10-17 | N156: 06 | O156: 2026 | P156: 2976 | Q156: 35712 | R156: 23808 | S156: T.GLA.CIH | U156: Luciana Cayres Schmidt | V156: Fabrizzio de Oliveira Dias | W156: Victor Adler Oliveira | X156: Júlia Carolina Soares
A157: 9483.051/25 | B157: 9483051 | C157: 2320.01.0016081/2025-76 | D157: Fresenius Hemocare Brasil Ltda. | E157: Aquisição de reagentes para testes imunohematologicos (Lote 01). | F157: Não | H157: 2025-11-12 | I157: 2026-11-11 | J157: Sim | M157: 2035-11-11 | N157: 11 | O157: 2026 | Q157: 38580 | R157: 38580 | S157: T.GLA.CIH | U157: Luciana Cayres Schmidt | V157: Ariane Ribeiro da Silva | W157: Júlia Carolina Soares | X157: Victor Adler Oliveira
A158: 9501.527/26 | B158: 9501527 | C158: 2320.01.0018010/2024-85 | D158: Fresenius Hemocare Brasil Ltda. | E158: Aquisição de kit para dosagem de hemoglobina, com aluguel de equipamento, controle de qualidade e calibradores (se necessário) para os equipamentos. | F158: Não | H158: 2026-04-10 | I158: 2027-04-09 | J158: Sim | M158: 2036-04-09 | N158: 04 | O158: 2027 | P158: 90840 | Q158: 1090080 | R158: 1090080 | S158: T.GLA | U158: Marilene Pereira Silva Castanheira | V158: João Paulo dos Santos Barbosa | W158: Kathryna Fontana Rodrigues | X158: Iara Simões Xavier
A159: 9379.422/23 | B159: 9379422 | C159: 2320.01.0017711/2022-16 | D159: Fujicom Comércio de Materiais Hospitalares e Importação Ltda. | E159: Aquisição de lâminas de cobre e/ou elemento selante por radiofrequência (item 01). | F159: Não | H159: 2023-03-29 | I159: 2024-03-28 | J159: Sim | K159: 2026-03-29 | L159: 2027-03-28 | M159: 2028-03-28 | N159: 03 | O159: 2027 | P159: 185859.37 | Q159: 2230312.5 | R159: 2230312.5 | S159: T.GCQ | U159: Roberto Mauro Ferreira Silva | V159: Gabriela Coelho de Rezende | W159: Iara Simões Xavier | X159: Marcela Soares Ferreira
A160: 9379.423/23 | B160: 9379423 | C160: 2320.01.0017711/2022-16 | D160: Fujicom Comércio de Materiais Hospitalares e Importação Ltda. | E160: Locação de equipamentos, item 02. | F160: Não | H160: 2023-03-29 | I160: 2024-03-28 | J160: Sim | K160: 2026-03-29 | L160: 2027-03-28 | M160: 2027-03-28 | N160: 03 | O160: 2027 | P160: =R160/12 -> 4261.21 | Q160: 51134.52 | R160: 51134.52 | S160: DGI.ENC | U160: Adilson Meireles Pacheco | V160: Felipe Garabini Antunes | W160: Kathryna Fontana Rodrigues | X160: Iara Simões Xavier
A161: 9452.471/25 | B161: 9452471 | C161: 2320.01.0010300/2024-93 | D161: Fundação Ezequiel Dias | E161: Prestação de serviços laboratoriais de análises microbiológicas. | F161: Não | H161: 2025-03-20 | I161: 2026-03-19 | J161: Sim | K161: 2026-03-20 | L161: 2027-03-19 | M161: 2035-03-19 | N161: 03 | O161: 2027 | P161: =Tabela1[[#This Row],[VALOR ANUAL]]/12 -> 15227.735 | Q161: 182732.82 | R161: 182732.82 | S161: CETEBIO | U161: Maria Lúcia Soares de Moura | V161: Jucélia Schittini da Silva Morais | W161: Júlia Carolina Soares | X161: Victor Adler Oliveira
A162: 9484.348/25 | B162: 9484348 | C162: 2320.01.0016399/2025-26 | D162: Gabriela Oliveira Ribeiro Caldas ME | E162: Prestação de serviços de desinsetização e desratização (Loe 11). | F162: Não | H162: 2025-11-27 | I162: 2026-11-26 | J162: Sim | M162: 2035-11-26 | N162: 11 | O162: 2026 | P162: =Tabela1[[#This Row],[VALOR ANUAL]]/12 -> 112.1866667 | Q162: 1346.24 | R162: 1346.24 | S162: DGI.NZL | U162: Marcelo de Aguiar Gomes | V162: Raphael Bastos Florentino | W162: Júlia Carolina Soares | X162: Victor Adler Oliveira
A163: 9292.057/21 | B163: 9292057 | C163: 2320.01.0005607/2021-34 | D163: GARRASEG SOLUÇÕES EM SEGURANÇA ELETRÔNICA LTDA. | E163: Prestação de serviço de manutenção do Sistema de Vigilância Eletrônica na Unidade da Fundação Hemominas em Uberaba. | F163: Não | H163: 2021-11-13 | I163: 2022-11-12 | J163: Sim | K163: 2025-11-13 | L163: 2026-11-12 | M163: 2026-11-12 | N163: 11 | O163: 2026 | P163: =R163/12 -> 1227.551667 | Q163: 14730.62 | R163: 14730.62 | S163: URA.GAD | U163: Leila Pereira | V163: Lúcia de Fátima Oliveira | W163: Kathryna Fontana Rodrigues | X163: Iara Simões Xavier
A164: 9502.049/26 | B164: 9502049 | C164: 2320.01.0005937/2026-33 | D164: Geraes Diagnóstica Ltda. | E164: Aquisição de reagentes necessário para tipificação HLA (média/alta resolução) de amostras de Doadores e Receptores de Medula Óssea e órgãos sólidos de todo o Estado de Minas Gerais. (Loe 04). | F164: Não | H164: 2026-04-24 | I164: 2027-04-23 | J164: Não | M164: 2027-04-23 | N164: 04 | O164: 2027 | P164: 470 | Q164: 5640 | R164: 5640 | S164: T.GLA.HLA | U164: Milena Batista de Oliveira | V164: Ricardo Alves de Cristo | W164: Victor Adler Oliveira | X164: Júlia Carolina Soares
A165: 9437.936/24 | B165: 9437936 | C165: 2320.01.0009301/2023-06 | D165: Gesmaq Comércio e Serviços Ltda | E165: Prestação de Serviço de manutenção preventiva mensal e corretivas, incluindo todo e qualquer tipo de mão de obra, com fornecimento de peças e materiais, necessários ao perfeito funcionamento de 03 (três) empilhadeiras, incluindo os carregadores de bateria, alocados no Almoxarifado Central. | F165: Não | H165: 2024-10-01 | I165: 2029-09-30 | J165: Sim | M165: 2034-09-30 | N165: 09 | O165: 2029 | P165: - | R165: 240000 | S165: DGI.ENC | U165: João Silvestre Guimarães | V165: Wesley Rodrigues Tomaz | W165: Júlia Carolina Soares | X165: Victor Adler Oliveira
A166: 9326.779/22 | B166: 9326779 | C166: 2320.01.0013145/2021-14 | D166: GHS Indústria e Serviços Ltda. | E166: Contratação de empresa para realização de ensaios do efluente não doméstico gerado no Hemocentro de Belo Horizonte. | F166: Não | H166: 2022-03-26 | I166: 2023-03-25 | J166: Sim | K166: 2026-03-26 | L166: 2027-03-25 | M166: 2027-03-25 | N166: 03 | O166: 2027 | Q166: 21727.86 | S166: HBH.A.MPR | U166: Douglas Augusto Rodrigues Pereira | V166: Paula Maria Leão Mendes Roenick | W166: Iara Simões Xavier | X166: Marcela Soares Ferreira
A167: 9451.321/25 | B167: 9451321 | C167: 2320.01.0016816/2024-22 | D167: Globalsec Tecnologia da Informação Ltda. | E167: Prestação de Serviços de certificação digital para pessoa jurídica. | F167: Não | H167: 2025-02-18 | I167: 2030-02-17 | J167: Sim | M167: 2035-02-17 | N167: 02 | O167: 2030 | P167: =Tabela1[[#This Row],[VALOR ANUAL]]/12 -> 3282.833333 | Q167: =Tabela1[[#This Row],[VALOR TOTAL]]/5 -> 39394 | R167: 196970 | S167: I.GTC.ITS | U167: Izadalvo Ricardo de Oliveira | V167: Fabrine Juliana Fabricio Costa | W167: Kathryna Fontana Rodrigues | X167: Iara Simões Xavier
A168: 9396.509/23 | B168: 9396509 | C168: 2320.01.0000857/2023-44 | D168: Globalthings Tecnologia Ltda. | E168: Prestação de Serviço de FORNECIMENTO DE LICENÇA, PRESTAÇÃO DE SERVIÇOS DE MIGRAÇÃO DE BANCO DE DADOS, DE MANUTENÇÃO DE SISTEMAS DE INFORMAÇÃO E DE CONSULTORIA PARA CUSTOMIZAÇÃO DE SISTEMA DE INFORMAÇÃO | F168: Não | H168: 2023-10-12 | I168: 2027-10-11 | J168: Não | M168: 2027-10-11 | N168: 10 | O168: 2027 | P168: =Tabela1[[#This Row],[VALOR ANUAL]]/12 -> 3366.884792 | Q168: =Tabela1[[#This Row],[VALOR TOTAL]]/4 -> 40402.6175 | R168: 161610.47 | S168: DGI.ENC | U168: Felipe Garabini Antunes | V168: Marcelo Furtado dos Santos | W168: Júlia Carolina Soares | X168: Victor Adler Oliveira
A169: 9402.114/23 | B169: 9402114 | C169: 2320.01.0016799/2023-96 | D169: Greiner Bio-One Brasil Produtos Médicos Hospitalares Ltda. | E169: Aquisição de tubo para coleta de sangue a vácuo, Lotes 04, 05, 06 e 07. | F169: Não | H169: 2023-12-20 | I169: 2024-12-19 | J169: Sim | K169: 2025-12-20 | L169: 2026-12-19 | M169: 19/12/2028 (Lote 04). | N169: 12 | O169: 2026 | P169: 1156.89 | Q169: 13882.66 | R169: 13882.66 | S169: T.GLA | U169: Andreia Alvares Tângari Beatriz Nogueira de Carvalho | V169: Felipe Carlos Brito de Souza | W169: Victor Adler Oliveira | X169: Júlia Carolina Soares
A170: 9470.488/25 | B170: 9470488 | C170: 2320.01.0008804/2025-33 | D170: Greiner Bio-One Brasil Produtos Médicos Hospitalares Ltda. | E170: Aquisição de tubos para coleta de sangue a vácuo, tubos de vidro para laboratório e tampa uso laboratório (lotes 01 e 02).). | F170: Não | H170: 2025-06-16 | I170: 2026-06-15 | J170: Sim | M170: 2035-06-15 | N170: 06 | O170: 2026 | Q170: 503400 | R170: 503400 | S170: T.GLA | U170: João Paulo dos Santos Barbosa | W170: Kathryna Fontana Rodrigues | X170: Iara Simões Xavier
A171: 9454.471/25 | B171: 9454471 | C171: 2320.01.0003873/2025-86 | D171: Grifols Brasil Ltda. | E171: Aquisição de reagentes para testes imunohematológicos (Lote 11). | F171: Não | H171: 2025-03-11 | I171: 2026-03-10 | J171: Sim | K171: 2026-03-11 | L171: 2027-03-10 | M171: 2035-03-10 | N171: 03 | O171: 2027 | P171: 64065.36 | Q171: 768784.32 | R171: 7687843.2 | S171: T.GLA.CIH | U171: Luciana Cayres Schmidt | V171: Fabrizzio de Oliveira Dias | W171: Iara Simões Xavier | X171: Marcela Soares Ferreira
A172: 9468.363/25 | B172: 9468363 | C172: 2320.01.0007286/2025-85 | D172: Grifols Brasil Ltda. | E172: Aquisição de conjunto analítico para realização de testes imunohematológicos, com equipamento em comodato | F172: Sim | H172: 2025-05-28 | I172: 2026-05-27 | J172: Sim | K172: 2026-05-28 | L172: 2027-05-27 | M172: 2035-05-27 | N172: 05 | O172: 2027 | P172: =Tabela1[[#This Row],[VALOR TOTAL]]/12 -> 133785 | Q172: 1605420 | R172: 1605420 | S172: T.GLA.CSI | U172: Sabrina Vieira Espíndola | V172: Nauhara Vieira de Castro Barroso | W172: Kathryna Fontana Rodrigues | X172: Iara Simões Xavier
A173: 9481.268/25 | B173: 9481268 | C173: 2320.01.0005864/2025-67 | D173: GX Assessoria e Consultoria de Licitações Ltda | E173: Aquisição de suco de 1 L (lote 05). | F173: Não | H173: 2025-10-23 | I173: 2026-10-22 | J173: Sim | M173: 2035-10-22 | N173: 10 | O173: 2026 | P173: =Tabela1[[#This Row],[VALOR TOTAL]]/12 -> 32475 | Q173: 389700 | R173: 389700 | S173: T.GSA / T.GSA.SUP | U173: Lorena Prezotti Rodrigues | V173: Juliana Pessoa Pinheiro de Azevedo | W173: Kathryna Fontana Rodrigues | X173: Iara Simões Xavier
A174: 9457.502/25 | B174: 9457502 | C174: 2320.01.0011004/2024-97 | D174: IBUR Negócios e Serviços Ltda. | E174: Prestação de Serviços de Manutenção Preventiva semestral, Qualificação do Equipamento - Mapeamento de Dose anual do Irradiador IBL 437C e Calibração/Irradiação anual do Dosímetro Thero Fisher Scientific - RadEye. | F174: Não | H174: 2025-03-26 | I174: 2026-03-25 | J174: Sim | K174: 2026-03-26 | L174: 2027-03-25 | M174: 2035-03-25 | N174: 03 | O174: 2027 | P174: 5223.09 | Q174: 62677.09 | R174: 62677.09 | S174: DGI.ENC | U174: Eduardo da Silva Oliveira | V174: Felipe Garabini Antunes | W174: Victor Adler Oliveira | X174: Júlia Carolina Soares
A175: 9509.793/26 | B175: 9509793 | C175: 2320.01.0007658/2026-29 | D175: Indústria e Comércio Colchões Orthovida Ltda. | E175: Aquisição de mobiliário administrativo (lote 18). | F175: Não | H175: 2026-05-21 | I175: 2027-05-20 | J175: Não | M175: 2027-05-20 | N175: 05 | O175: 2027 | Q175: 6175.2 | R175: 6175.2 | S175: G.GLQ.PTM | U175: Vagner Luiz da Silva | V175: Ricardo Rocha Moreira Júnior | W175: Kathryna Fontana Rodrigues | X175: Iara Simões Xavier
A176: 9404.130/23 | B176: 9404130 | C176: 2320.01.0017149/2023-55 | D176: Infocore Soluções Tecnológicas Ltda. | E176: Prestação de serviço de Manutenção preventiva anual e corretiva das subestações de energia elétrica - Cetebio da Fundação Hemominas, LOTE 01. | F176: Não | H176: 2023-12-14 | I176: 2024-12-13 | J176: Sim | K176: 2025-12-14 | L176: 2026-12-13 | M176: 2028-12-13 | N176: 12 | O176: 2026 | P176: =R176/12 -> 4983.189167 | Q176: 59798.27 | R176: 59798.27 | S176: I.GIF.MPR | U176: Forlan Bragança Lemos | V176: Leila Guedes Alvim | W176: Kathryna Fontana Rodrigues | X176: Iara Simões Xavier
A177: 9383.296/23 | B177: 9383296 | C177: 2320.01.0000472/2022-63 | D177: Infordinâmica Tecnologia Ltda. | E177: Prestação de serviço de suporte técnico a ambiente operacional de servidores e ambiente de banco de dados - atendimento 24x7. | F177: Não | H177: 2023-04-28 | I177: 2026-04-27 | J177: Sim | K177: 2026-04-28 | L177: 2027-04-27 | M177: 2028-04-27 | N177: 04 | O177: 2027 | P177: 60276.67 | Q177: 723320.04 | R177: 723320.04 | S177: I.GTC.ITS | U177: Fabrine Juliana Fabricio Costa | V177: Daniel Eustáquio Coutinho | W177: Iara Simões Xavier | X177: Marcela Soares Ferreira
A178: 9345.457/22 | B178: 9345457 | C178: 2320.01.0006706/2022-40 | D178: Infra do Brasil Comércio e Serviços Eireli | E178: Prestação de serviço de suporte técnico ao ambiente virtual de aprendizado. | F178: Não | H178: 2022-09-13 | I178: 2023-09-12 | J178: Sim | K178: 2025-09-13 | L178: 2026-09-12 | M178: 2027-09-12 | N178: 09 | O178: 2026 | P178: 2417.12 | Q178: 29005.44 | R178: 29005.44 | S178: I.GTC.ADS | U178: Adriana Lúcia dos Santos | V178: Fabrine Juliana Fabricio Costa | W178: Júlia Carolina Soares | X178: Victor Adler Oliveira
A179: 9456.457/25 | B179: 9456457 | C179: 2320.01.0001373/2025-74 | D179: Instituto Zuriel Capacitação e Publicações Ltda. | E179: Prestação de serviços de publicidade dos avisos de licitação, bem como matérias de interesse da DPGF e gabinete, sem dedicação exclusiva de mão de obra. | F179: Não | H179: 2025-03-20 | I179: 2026-03-19 | J179: Sim | K179: 2026-03-20 | L179: 2027-03-19 | M179: 2035-03-19 | N179: 03 | O179: 2027 | Q179: 0 | R179: 17068.3 | S179: G.GLQ.COM | U179: Rafael Ribeiro Lopes | V179: Andrea Aparecida Ferreira | W179: Júlia Carolina Soares | X179: Victor Adler Oliveira
A180: 9417.596/24 | B180: 9417596 | C180: 2320.01.0001341/2024-68 | D180: Interact Solutions Ltda | E180: Prestação de Serviço de subscrição de licença de software de planejamento estratégico - Interact Strategic Adviser, condições estabelecidas no Termo de Referência. | F180: Não | H180: 2024-03-28 | I180: 2025-03-27 | J180: Sim | K180: 2026-03-28 | L180: 2027-03-27 | M180: 2029-03-27 | N180: 03 | O180: 2027 | P180: =Tabela1[[#This Row],[VALOR TOTAL]]/12 -> 29708.65333 | Q180: 356503.84 | R180: 356503.84 | S180: PRE.AAE | T180: Diogo Wanis Lara | U180: Diogo Wanis Lara | V180: Fernanda Zampronio Carvalho | W180: Kathryna Fontana Rodrigues | X180: Iara Simões Xavier
A181: 9470.484/25 | B181: 9470484 | C181: 2320.01.0008742/2025-58 | D181: Instrutherm Instrumentos de Medição Ltda. | E181: Compra de equipamentos técnicos (lote 10). | F181: Não | H181: 2025-06-20 | I181: 2026-06-19 | J181: Não | M181: 2026-06-19 | N181: 06 | O181: 2026 | P181: =Tabela1[[#This Row],[VALOR ANUAL]]/12 -> 11800 | Q181: 141600 | R181: 141600 | S181: DGI.ENC.CAT | U181: Asaph Calazans Mendes de Souza | V181: Manoel Ricardo Caires Fernandes | W181: Júlia Carolina Soares | X181: Victor Adler Oliveira
A182: 9459.026/25 | B182: 9459026 | C182: 2320.01.0005213/2025-87 | D182: J & N Soluções Elétricas Ltda. | E182: Instalação de sistema de proteção contra descargas atmosféricas. | F182: Não | H182: 2025-04-04 | I182: 2027-04-03 | J182: Não | M182: 2027-04-03 | N182: 04 | O182: 2027 | Q182: 0 | R182: 880908.73 | S182: I.GIF.AQE | U182: Márcia Mourão Moreira | V182: Guilherme Ferreira Alves Júnior | W182: Júlia Carolina Soares | X182: Victor Adler Oliveira
A183: 9383.322/23 | B183: 9383322 | C183: 2320.01.0004741/2022-36 | D183: JMBM Engenharia Elétricas & Climatização Ltda | E183: Prestação de serviço de manutenção preventiva e corretiva de equipamentos de ar-condicionado no Hemonúcleo de Manhuaçu. | F183: Não | H183: 2023-04-19 | I183: 2024-04-18 | J183: Sim | K183: 2026-04-19 | L183: 2027-04-18 | M183: 2028-04-18 | N183: 04 | O183: 2027 | P183: =R183/12 -> 3749.9325 | Q183: 44999.16 | R183: 44999.19 | S183: MÇU.GAD | U183: Gulliver Fabricio Vieira Rocha | V183: Maria José Moreira | W183: Júlia Carolina Soares | X183: Victor Adler Oliveira
A184: 9447.573/2025 | B184: 9447573 | C184: 2320.01.0008366/2024-28 | D184: JMBM Engenharia Elétricas & Climatização Ltda | E184: Prestação de serviços de manutenção dos equipamentos de ar condicionado do Hemonúcleo de Ponte Nova, | F184: Não | H184: 2025-01-10 | I184: 2030-01-09 | J184: Sim | M184: 2035-01-09 | N184: 01 | O184: 2030 | R184: 111890 | S184: PNO/GAD | U184: Luciana Marinho Monteiro Cerqueira | V184: Marcelo Fabri Leandro | W184: Júlia Carolina Soares | X184: Victor Adler Oliveira
A185: 9376.887/23 | B185: 9376887 | C185: 2320.01.0011426/2022-58 | D185: JMBM Engenharia Elétricas & Climatização Ltda. | E185: Prestação de serviço de manutenção preventiva e corretiva de equipamentos de ar-condicionado para o Hemonúcleo de Diamantina da Fundação Hemominas. | F185: Não | H185: 2023-03-14 | I185: 2024-03-13 | J185: Sim | K185: 2026-03-14 | L185: 2027-03-13 | M185: 2028-03-13 | N185: 03 | O185: 2027 | P185: =R185/12 -> 2490 | Q185: 29880 | R185: 29880 | S185: DIA.GAD | U185: Amanda Franciele Dias de Oliveira | V185: Alessandra Cristina Menezes Fratezzi Santos | W185: Júlia Carolina Soares | X185: Victor Adler Oliveira
A186: 9484.136/25 | B186: 9484136 | C186: 2320.01.0016302/2025-26 | D186: João Victor Ferreira Santos | E186: Aquisição de gêneros alimentícios para o doador de sangue de Uberlândia (Lote 02). | F186: Não | H186: 2025-11-17 | I186: 2026-11-16 | J186: Sim | M186: 2035-11-16 | N186: 11 | O186: 2026 | P186: =Tabela1[[#This Row],[VALOR TOTAL]]/12 -> 13322.4 | Q186: 159868.8 | R186: 159868.8 | S186: UDI.GAD | U186: Patrícia Santos de Almeida Fernandes | V186: Márcia Regina Luis | W186: Kathryna Fontana Rodrigues | X186: Iara Simões Xavier
A187: 9494.509/25 | B187: 9494509 | C187: 2320.01.0015633/2025-47 | D187: JP Cirúrgica Ltda. | E187: Compra de pipetas e tubos | F187: Não | H187: 2026-02-11 | I187: 2027-02-10 | J187: Sim | M187: 2036-02-10 | N187: 02 | O187: 2027 | P187: 457.5 | Q187: 5490 | R187: 5490 | S187: G.GLQ.ADM / T.GLA | U187: João Paulo dos Santos Barbosa | V187: Nilda Maria Campos Lucena | W187: Victor Adler Oliveira | X187: Júlia Carolina Soares
A188: 9497.081/26 | B188: 9497081 | C188: 2320.01.0014671/2025-25 | D188: JP Cirúrgica Ltda. | E188: Compra de soro anti-D IgG. | F188: Não | H188: 2026-03-06 | I188: 2027-03-05 | J188: Sim | M188: 2036-03-05 | N188: 03 | O188: 2027 | Q188: 4200 | R188: 4200 | S188: T.GCQ | U188: Eduarda Bolina Santos | W188: Victor Adler Oliveira | X188: Júlia Carolina Soares
A189: 9437.077/24 | B189: 9437077 | C189: 2320.01.0011833/2024-24 | D189: JP INDÚSTRIA FARMACÊUTICA S.A | E189: Aquisição de bolsade transferência com volume de 300 a 500 ml (Lote 02) | F189: Não | H189: 2024-08-29 | I189: 2027-08-28 | J189: Sim | M189: 2030-08-28 | N189: 08 | O189: 2027 | P189: =R189/12 -> 33600 | Q189: 134400 | R189: 403200 | S189: T.GCQ | U189: Ana Paula de Morais | V189: Roberto Mauro Ferreira Silva | W189: Kathryna Fontana Rodrigues | X189: Iara Simões Xavier
A190: 9505.094/26 | B190: 9505094 | C190: 2320.01.0006961/2026-30 | D190: Kasvi Importação e Distribuição de Produtos Para Laboratórios Ltda. | E190: Aquisição de insumos plásticos (Lotes 01 e 04). | F190: Não | H190: 2026-05-07 | I190: 2027-05-06 | J190: Não | M190: 2027-05-06 | N190: 05 | O190: 2027 | P190: 645 | Q190: 7740 | R190: 7740 | U190: Milena Batista de Oliveira | V190: Marleide Mendes Dias | W190: Iara Simões Xavier | X190: Kathryna Fontana Rodrigues
A191: 9493.215/2026 | B191: 9493215 | C191: 2320.01.0012716/2025-42 | D191: LAB SHOPPING DIAGNÓSTICA LTDA. | E191: Compra de reagentes e prestação de serviços de manutenção corretiva com fornecimento de peças, preventiva e calibração dos contadores hematológicos ABX Micros 60 da Fundação Hemominas - Unidades: JFO, MOC, GOV. UDI, URA e Belo Horizonte. | F191: Não | H191: 2026-02-03 | I191: 2027-02-02 | J191: Sim | M191: 2036-02-02 | N191: 02 | O191: 2027 | P191: =Tabela1[[#This Row],[VALOR ANUAL]]/12 -> 23933.66667 | Q191: 287204 | R191: 287204 | S191: T.GCQ / DGI.ENC | U191: Roberto Mauro Ferreira Silva | V191: Alexander Lúcio de Sá Araújo | W191: Júlia Carolina Soares | X191: Victor Adler Oliveira
A192: 9453.452/25 | B192: 9453452 | C192: 2320.01.0005754/2023-36 | D192: Laboratórios Ecolyzer Ltda. | E192: Prestação de serviço especializado de exame em embalagens de materiais biológicos. | F192: Não | H192: 2025-02-28 | I192: 2026-02-27 | J192: Sim | K192: 2026-02-28 | L192: 2027-02-27 | M192: 2035-02-27 | N192: 02 | O192: 2027 | P192: =Tabela1[[#This Row],[VALOR TOTAL]]/12 -> 965.43 | Q192: 11585.16 | R192: 11585.16 | S192: CETEBIO | U192: Jucélia Schittini da Silva Morais | V192: Maria Lúcia Soares de Moura | W192: Kathryna Fontana Rodrigues | X192: Iara Simões Xavier
A193: 9508039 | B193: 9508039 | C193: 2320.01.0007579/2026-28 | D193: Lafitti Mobili Ltda. | E193: Aquisição de mobiliário administrativo (lotes 09, 05 e 17). | F193: Não | H193: 2026-05-14 | I193: 2027-05-13 | J193: Não | M193: 2027-05-13 | N193: 05 | O193: 2027 | Q193: 121162.86 | R193: 121162.86 | S193: G.GLQ.PTM | U193: Vagner Luiz da Silva | V193: Ricardo Rocha Moreira Júnior | W193: Júlia Carolina Soares | X193: Victor Adler Oliveira
A194: 9481.926/25 | B194: 9481926 | C194: 2320.01.0015817/2025-26 | D194: LBF Comércio e Serviços Ltda | E194: Compra de anticorpos (lotes 02 e 03). | F194: Não | H194: 2025-11-07 | I194: 2026-11-06 | J194: Sim | M194: 2035-11-06 | N194: 11 | O194: 2026 | P194: 309.25 | Q194: 3711 | R194: 3711 | S194: CETEBIO | U194: Maria Lúcia Soares de Moura | V194: Maurício Colombini Martins | W194: Victor Adler Oliveira | X194: Júlia Carolina Soares
A195: 9483.043/25 | B195: 9483043 | C195: 2320.01.0016087/2025-11 | D195: Life Technologies Brasil Comércio e Indústria de Produtos para Biotecnologia Ltda. | E195: Aquisição de reagentes para testes imunohematológicos (Lotes 11,12 e 13). | F195: Não | H195: 2025-11-19 | I195: 2026-11-18 | J195: Sim | M195: 2035-11-18 | N195: 11 | O195: 2026 | P195: 938.09 | Q195: 11257.08 | R195: 112570.8 | S195: T.GLA.CIH | U195: Luciana Cayres Schmidt | V195: Ariane Ribeiro da Silva | W195: Iara Simões Xavier | X195: Marcela Soares Ferreira
A196: 9472.975/25 | B196: 9472975 | C196: 2320.01.0001826/2025-65 | D196: Limpeza & Brilho Ltda. - EPP. | E196: Aquisição de materiais, equipamentos e acessórios de limpeza (DESINFETANTE - TIPO: HOSPITALAR) | F196: Não | H196: 2025-07-29 | I196: 2026-07-28 | J196: Não | M196: 2026-07-28 | N196: 07 | O196: 2026 | P196: =Tabela1[[#This Row],[VALOR TOTAL]]/12 -> 483.5 | Q196: 5802 | R196: 5802 | U196: Marcelo de Aguiar Gomes | V196: Nilza de Melo Pereira | W196: Kathryna Fontana Rodrigues | X196: Iara Simões Xavier
A197: 9445.764/24 | B197: 9445764 | C197: 2320.01.0009742/2024-27 | D197: Líver Administradora e Corretora de Imóveis Ltda | E197: Locação do imóvel comercial situado à Rua Darcy Botelho de Castro, nº 240, Bairro Esplanada, Ponte Nova, MG, com área total aproximada de 64,67 m2 | F197: Não | H197: 2024-12-12 | I197: 2025-12-11 | J197: Sim | K197: 2025-12-12 | L197: 2026-12-11 | M197: 2034-12-11 | N197: 12 | O197: 2026 | P197: 967.66 | Q197: 11611.92 | R197: 116119.2 | S197: PNO.GAD | U197: Luciana Marinho Monteiro Cerqueira | V197: Marcelo Fabri Leandro | W197: Iara Simões Xavier | X197: Marcela Soares Ferreira
A198: 9371.053/23 | B198: 9371053 | C198: 2320.01.0004640/2022-47 | D198: LMC Medição e Controle Eireli - ME | E198: Prestação de serviços especializados de calibração de equipamentos e instrumentos de precisão. | F198: Não | H198: 2023-01-25 | I198: 2024-01-24 | J198: Sim | K198: 2026-01-25 | L198: 2027-01-24 | M198: 2028-01-24 | N198: 01 | O198: 2027 | P198: =R198/12 -> 36157.35667 | Q198: 433888.28 | R198: 433888.28 | S198: DGI.ENC | U198: Felipe Garabini Antunes | V198: Marcelo Furtado dos Santos | W198: Kathryna Fontana Rodrigues | X198: Iara Simões Xavier
A199: 9440.564/25 | B199: 9440564 | C199: 2320.01.0008078/2024-44 | D199: LMC Medição e Controle Ltda. | E199: Prestação de serviços de qualificação térmica e calibração de equipamentos de refrigeração. | F199: Não | H199: 2024-10-16 | I199: 2025-10-15 | J199: Sim | K199: 2025-10-16 | L199: 2026-10-15 | M199: 2034-10-15 | N199: 10 | O199: 2026 | P199: =Tabela1[[#This Row],[VALOR ANUAL]]/12 -> 37665.9375 | Q199: 451991.25 | R199: 451991.25 | S199: DGI.ENC | U199: Felipe Silva Teixeira | V199: Marcelo Furtado dos Santos | W199: Júlia Carolina Soares | X199: Victor Adler Oliveira
A200: 9493.179/26 | B200: 9493179 | C200: 2320.01.0001178/2026-98 | D200: Logicron Serviços Ltda. | E200: Prestação de serviços instalação de novos equipamentos de ar-condicionado tipo Split (LOTE 2) na Unidade de Juiz de Fora. | F200: Não | H200: 2026-01-30 | I200: 2027-01-29 | J200: Sim | M200: 2036-01-29 | N200: 01 | O200: 2027 | P200: 483.33 | Q200: 5799.99 | R200: 5799.99 | S200: JFO.GAD | U200: Victor Valente Campos | V200: Marcia Cristina de Almeida | W200: Victor Adler Oliveira | X200: Júlia Carolina Soares
A201: 9459.903/25 | B201: 9459903 | C201: 2320.01.0005918/202564 | D201: Ludwig Biotecnologia Ltda - EPP | E201: Aquisição de reagentes para o laboratório de histocompatibilidade lotes 05 (solução tampão) e 06 (agarose). | F201: Não | H201: 2025-04-17 | I201: 2026-04-16 | J201: Não | M201: 2026-04-16 | N201: 04 | O201: 2026 | Q201: 0 | R201: 8200 | S201: T.GLA.HLA | U201: Milena Batista de Oliveira | V201: Luciana Lara Viegas da Aparecida | W201: Júlia Carolina Soares | X201: Victor Adler Oliveira
A202: 9428.207/24 | B202: 9428207 | C202: 2320.01.0004590/2024-33 | D202: M.I MONTREAL INFORMÁTICA S.A | E202: Prestação de Serviço de Desenvolvimento e manutenção de sistemas por alocação de perfis profissionais. | F202: Não | G202: Sim | H202: 2024-06-04 | I202: 2025-06-03 | J202: Sim | K202: 2025-06-04 | L202: 2026-06-03 | M202: 2029-06-03 | N202: 06 | O202: 2026 | P202: =Tabela1[[#This Row],[VALOR TOTAL]]/12 -> 137022.2783 | Q202: 1644267.34 | R202: 1644267.34 | S202: I.GTC.ADS | U202: Adriana Lúcia dos Santos | V202: Juan Pablo Figueiredo Silva | W202: Kathryna Fontana Rodrigues | X202: Iara Simões Xavier
... 137 more rows

Sheet Plan1
B1: Quantitativo de Contrato por Diretoria/Gerência
B3: ATE | F3: Unidades Regionais
B4: ATE/GRH/GDT | C4: 1 | D4: 402775 | F4: ALP | G4: 2 | H4: 49918.59
B5: GDI | C5: 1 | D5: 368496.8 | F5: BET | G5: 1 | H5: 12958.7
B6: GFC | C6: 1 | D6: 108800 | F6: CET | G6: 11 | H6: 953663.94
B7: GIF | C7: 17 | D7: 898247.5 | F7: DIV | G7: 6 | H7: 175890.58
B8: GTC | C8: 24 | D8: 17882757.22 | F8: GOV | G8: 11 | H8: 600794.83
B9: Total | C9: =SUM(C4:C8) -> 44 | D9: =SUM(D4:D8) -> 19661076.52 | F9: HBH | G9: 17 | H9: 2010237.16
F10: HJK | G10: 1 | H10: 13990.08
B11: PGF | F11: ITU | G11: 3 | H11: 69450.08
B12: GLG | C12: 76 | D12: 32834812.06 | F12: JFO | G12: 9 | H12: 568131.01
B13: GRH | C13: 11 | D13: 2144089.66 | F13: MCU | G13: 5 | H13: 194502.13
B14: GSO | C14: 77 | D14: 26398529.68 | F14: MOC | G14: 17 | H14: 616636.25
B15: Total | C15: =SUM(C12:C14) -> 164 | D15: =SUM(D12:D14) -> 61377431.4 | F15: PAL | G15: 4 | H15: 151150.99
F16: PAS | G16: 4 | H16: 121126.4
B17: PRE | F17: PMI | G17: 4 | H17: 33479.75
B18: ACS | C18: 3 | D18: 1610117.68 | F18: PNO | G18: 7 | H18: 131426
B19: ASQ | C19: 1 | D19: 64795.03 | F19: POC | G19: 2 | H19: 52846.25
B20: PRO | C20: 1 | D20: 520 | F20: SJR | G20: 4 | H20: 75323.6
B21: Total | C21: =SUM(C18:C20) -> 5 | D21: =SUM(D18:D20) -> 1675432.71 | F21: SLA | G21: 8 | H21: 113310.9
F22: UDI | G22: 7 | H22: 332046.04
B23: TEC | F23: URA | G23: 9 | H23: 212247.09
B24: GCQ | C24: 1 | D24: 117883.92 | F24: TOTAL | G24: =SUM(G4:G23) -> 132 | H24: =SUM(H4:H23) -> 6489130.37
B25: GDT | C25: 2 | D25: 1673968.56
B26: GLA | C26: 15 | D26: 13413172.05
B27: GSA (CAT) | C27: 9 | D27: 3223039.62
B28: Total | C28: =SUM(C24:C27) -> 27 | D28: =SUM(D24:D27) -> 18428064.15
B30: Fonte: FPOP.G.GPO.CCO 01 VERSÃO 04 - 12/07/2018
